Cogmind - Beta 16 @@@ ROGUE MODE // 2025.12.07 @ 12:04:57 Player: C0-2MO Result: Destroyed by G-73 Enforcer with Heavy Laser Performance ------------- Evolutions (9) 4500 Regions Visited (33) 6600 Robots Destroyed (767) 3835 Value Destroyed (33073) 33073 Prototype IDs (79) 1580 Alien Tech Used (3) 600 Bonus (22852) 22852 TOTAL SCORE: 73040 Bonus ------- Triggered High Security 1500 High Alert Combat Kills 15334 Follower Combat Kills 504 Destroyed Unchained 1000 Entered Garrisons 1000 Used RIF Installer 2500 Aligned with FarCom 300 Met Zhirov 300 Scanned by Researcher 500 Friendly Fire -86 Cogmind --------- Core Integrity 0/1600 Matter 256/300 Energy 0/100 System Corruption 25% Temperature Cool (15) Movement Hovering (102) Ox1 Location -1/Access Parts ------- > --- POWER (3) -------- (None) > --- PROPULSION (10) -- Gyrokinetic Inverter Improved Gyrokinetic Inverter Improved Gyrokinetic Inverter (fused) > --- UTILITY (10) ----- High-capacity Storage Unit > --- WEAPON (2) ------- (None) > --- INVENTORY (20) --- Biometal Heavy Treads Cooled Gravmag System Compact Matter Pod (150) Matter Compressor (250) Improved Matter Compressor (300) Experimental EM Shield Advanced Point Defense System Trap Reconfigurator HERF Cannon Cooled Particle Cannon Enhanced Nova Cannon Advanced Remote Datajack Power Sword Peak State ------------ > --- POWER ------------ Light Antimatter Reactor Light Antimatter Reactor Particle Reactor > --- PROPULSION ------- Improved Gravmag System Gyrokinetic Inverter Gyrokinetic Inverter Gyrokinetic Inverter Improved Antigrav System Improved Gyrokinetic Inverter Improved Gyrokinetic Inverter Improved Gyrokinetic Inverter Improved Gyrokinetic Inverter Improved Linear Gravjet > --- UTILITY ---------- Advanced Cryofiber Web Advanced Heat Sink Experimental Cooling System High-capacity Storage Unit Experimental Optical Array Advanced Signal Interpreter Quantum Capacitor Improved Hacking Suite Relay Coupler [NC] > --- WEAPON ----------- Enhanced Nova Cannon Power Sword > --- INVENTORY -------- Light Antimatter Reactor Cooled Gravmag System Improved Gyrokinetic Inverter Matter Compressor Improved Matter Compressor Precision Matter Filter Launcher Loader Stasis Canceller Experimental EM Shield Advanced Force Field Advanced Point Defense System Long-range Tractor Beam Trap Reconfigurator HERF Cannon Cooled Particle Cannon Hypervelocity Gauss Cannon Smartbomb Launcher Advanced Remote Datajack [Rating: 168] Favorites ----------- Power Neutrino Core Engine Light Angular Momentum Engine Power Core Neutrino Core Reactor Light Antimatter Reactor Propulsion Gyrokinetic Inverter Treads Light Treads Leg VSS Leg Wheel Wheel Hover Unit Gyrokinetic Inverter Flight Unit Biomechanical Wings Utility High-capacity Storage Unit Device Long-range Tractor Beam Storage High-capacity Storage Unit Processor Experimental Optical Array Hackware Improved Hacking Suite Protection Hardened Medium Armor Plating Weapon Power Sword Energy Gun Beamcaster Energy Cannon Heavy Particle Cannon Ballistic Gun Heavy Battle Rifle Ballistic Cannon Light Cannon Launcher Smartbomb Launcher Special Weapon Remote Datajack Impact Weapon Powered Hammer Slashing Weapon Power Sword Build | -11 -10 -10 -10 -9 -8 -8 -8 -8 -7 -7 -7 -7 -6 -6 -6 -6 -6 -6 -5 -5 -5 -5 -5 -5 -5 -4 -4 -4 -4 -3 -3 -2 -1 ------- Run | Yrd Mat Min Exi Min Mat Gar Mat Gar Fac Gar Fac Gar Fac Was Fac Low Low Zio Pro Fac Was Fac Upp Upp Zhi Pro Fac Arm Lab Res Gar Res Acc Slots Evolved 18 | . . . . . 4 . . . 2 . . . 2 . . . . . . 2 . . . . . . 2 . . 2 . 2 2 Power 2 | . . . . . . . . . . . . . . . . . . . . . . . . . . . 1 . . . . 1 . Propulsion 8 | . . . . . 2 . . . 1 . . . 2 . . . . . . 1 . . . . . . . . . 1 . . 1 Utility 8 | . . . . . 2 . . . 1 . . . . . . . . . . 1 . . . . . . 1 . . 1 . 1 1 Weapon . | . . . . . . . . . . . . . . . . . . . . . . . . . . . . . . . . . . Parts Attached 219 | 7 5 3 . 5 8 12 5 12 3 6 4 . 16 1 31 1 1 1 . 24 3 13 1 . 2 . 22 5 . 7 5 8 8 Power 27 | 1 . . . . 1 1 . . 1 1 . . 2 . 3 . . . . 4 . 1 . . . . 6 . . 2 . 2 2 Engine 5 | 1 . . . . 1 . . . . . . . . . 1 . . . . . . . . . . . 1 . . . . 1 . Core 12 | . . . . . . 1 . . 1 1 . . 1 . 2 . . . . 4 . 1 . . . . 1 . . . . . . Reactor 10 | . . . . . . . . . . . . . 1 . . . . . . . . . . . . . 4 . . 2 . 1 2 Propulsion 53 | 2 1 1 . 1 3 4 . 4 . 3 1 . 8 . 4 1 . . . 5 1 3 . . . . 7 . . . . 2 2 Treads 11 | 1 . 1 . 1 3 . . . . 3 . . 1 . . . . . . . . . . . . . . . . . . . 1 Leg 8 | . . . . . . 4 . 4 . . . . . . . . . . . . . . . . . . . . . . . . . Wheel 2 | 1 1 . . . . . . . . . . . . . . . . . . . . . . . . . . . . . . . . Hover 29 | . . . . . . . . . . . 1 . 6 . 4 1 . . . 3 1 3 . . . . 7 . . . . 2 1 Flight 3 | . . . . . . . . . . . . . 1 . . . . . . 2 . . . . . . . . . . . . . Utility 99 | 2 2 1 . 1 2 4 3 4 . 1 3 . 5 1 20 . 1 1 . 10 1 9 1 . 2 . 8 4 . 4 3 4 2 Device 46 | 1 1 . . . 1 2 . 1 . . 1 . 1 . 11 . . 1 . 4 1 4 . . 1 . 7 2 . 2 1 3 1 Storage 7 | 1 1 1 . . . . . . . . . . 1 . . . . . . . . 1 . . . . . 1 . . . 1 . Processor 5 | . . . . . . . . . . . . . . . 2 . 1 . . . . . . . . . . 1 . 1 . . . Hackware 26 | . . . . . . . 2 2 . . 2 . 2 1 5 . . . . 4 . 4 . . . . . . . 1 2 . 1 Protection 15 | . . . . 1 1 2 1 1 . 1 . . 1 . 2 . . . . 2 . . 1 . 1 . 1 . . . . . . Artifact . | . . . . . . . . . . . . . . . . . . . . . . . . . . . . . . . . . . Weapon 40 | 2 2 1 . 3 2 3 2 4 2 1 . . 1 . 4 . . . . 5 1 . . . . . 1 1 . 1 2 . 2 Energy Gun 4 | . . . . . . 1 . . 2 . . . . . 1 . . . . . . . . . . . . . . . . . . Energy Cannon 7 | . . . . . . 1 . 1 . 1 . . . . 1 . . . . . . . . . . . . . . . 1 . 2 Ballistic Gun 9 | 2 . 1 . 1 1 1 . 2 . . . . . . . . . . . 1 . . . . . . . . . . . . . Ballistic Cannon 5 | . 2 . . 1 . . . . . . . . . . . . . . . 1 . . . . . . . . . 1 . . . Launcher 6 | . . . . 1 . . 1 . . . . . . . 2 . . . . 1 . . . . . . 1 . . . . . . Special Weapon 4 | . . . . . 1 . . 1 . . . . . . . . . . . . 1 . . . . . . . . . 1 . . Impact Weapon 2 | . . . . . . . 1 . . . . . . . . . . . . 1 . . . . . . . . . . . . . Slashing Weapon 3 | . . . . . . . . . . . . . 1 . . . . . . 1 . . . . . . . 1 . . . . . Piercing Weapon . | . . . . . . . . . . . . . . . . . . . . . . . . . . . . . . . . . . Special Melee Weapon . | . . . . . . . . . . . . . . . . . . . . . . . . . . . . . . . . . . Unidentified Prototypes 30 | . . . . 1 . . 1 . 2 . 1 . 2 . 6 . . . . 5 1 . . 1 3 . . 5 . 1 . 1 . Parts Lost 66 | . 1 1 . 3 . 10 . 6 1 . . . . . 12 1 1 . 1 3 . . . . . . 2 . . 2 . . 22 Power 12 | . . . . . . 1 . . 1 . . . . . 2 . . . . . . . . . . . 2 . . 1 . . 5 Propulsion 24 | . 1 1 . 2 . 4 . 4 . . . . . . 4 . 1 . . 3 . . . . . . . . . . . . 4 Utility 22 | . . . . 1 . 3 . 1 . . . . . . 5 1 . . 1 . . . . . . . . . . . . . 10 Weapon 8 | . . . . . . 2 . 1 . . . . . . 1 . . . . . . . . . . . . . . 1 . . 3 Highest Loss Streak 21 | . 1 1 . 3 . 9 . 6 1 . . . . . 6 4 1 . 1 2 . . . . . . 1 . . 1 . . 21 To Critical Strikes . | . . . . . . . . . . . . . . . . . . . . . . . . . . . . . . . . . . Average Backups 16 | 3 8 15 18 13 14 13 14 13 14 14 14 16 16 19 16 14 14 14 15 17 17 16 16 16 16 16 17 17 17 16 18 18 17 Power 1 | 1 2 2 2 1 1 . 1 1 . . . . . 2 1 1 1 1 1 2 3 1 1 1 1 1 . 1 1 . . . . Propulsion 2 | 1 1 3 4 1 . . 1 1 . . . 2 2 4 3 1 1 1 2 . . 2 3 3 3 3 2 2 2 1 2 2 1 Utility 7 | . 1 3 4 5 6 5 5 5 5 7 8 8 9 10 7 7 6 6 7 9 9 7 7 7 7 7 9 9 10 11 12 11 9 Weapon 4 | . 3 6 8 5 7 6 6 5 6 6 5 5 3 3 2 4 4 5 4 4 5 5 4 4 4 3 3 3 4 3 4 4 4 Tool/Special . | . . . . . . . . . . . . . . . . . . . . . . . . . . . . . . . . . . Unused Backups 32 | . . . . 7 3 . 1 1 . 1 . . 7 . . . . . . 1 . . . . 1 . . 2 . . 1 2 5 Power 4 | . . . . 1 2 . . . . . . . 1 . . . . . . . . . . . . . . . . . . . . Propulsion 3 | . . . . 3 . . . . . . . . . . . . . . . . . . . . . . . . . . . . . Utility 18 | . . . . . . . 1 1 . 1 . . 4 . . . . . . 1 . . . . 1 . . 2 . . 1 2 4 Weapon 7 | . . . . 3 1 . . . . . . . 2 . . . . . . . . . . . . . . . . . . . 1 Tool/Special . | . . . . . . . . . . . . . . . . . . . . . . . . . . . . . . . . . . Average Slot Usage (%) 88 | . 83 85 85 73 78 94 99 97 83 76 76 76 83 100 83 75 78 77 75 91 99 95 94 94 94 95 92 97 94 98 96 94 91 Core 4 | . . . . . . 4 9 9 6 7 7 7 5 6 2 6 6 6 6 5 5 5 5 5 5 5 7 5 5 3 . . . Reactor 1 | . . . . . . . . . . . . . . . . . . . . . . . . . . . 2 5 5 4 9 12 11 Treads 5 | . 14 22 28 17 24 15 . . . 19 23 23 10 . . . . . . . . . . . . . . . . . . . . Leg 3 | . . . . . . 19 35 33 30 4 . . . . . . . . . . . . . . . . . . . . . . . Hover 27 | . . . . . . . . . . . . . 23 46 40 46 44 40 33 41 43 46 47 47 47 47 42 42 42 41 42 39 39 Device 9 | . 14 14 14 3 5 8 1 5 7 7 1 6 2 . 5 4 7 17 16 6 5 5 5 5 5 5 14 20 21 18 15 13 20 Storage 6 | . 14 14 14 14 9 9 9 9 7 7 7 7 5 6 6 6 6 6 6 5 5 5 5 5 5 5 5 5 5 4 4 4 4 Processor 3 | . . . . . . . . . . . . . . . 4 6 6 6 6 5 5 5 5 5 5 5 5 5 5 7 9 8 2 Hackware 7 | . . . . . . . 16 12 7 7 12 8 11 18 8 . . . . 14 17 12 11 11 11 11 1 . . 3 5 8 7 Protection 4 | . . . . 9 15 15 9 8 7 7 7 7 7 7 2 . . . . 1 . 2 5 5 5 5 4 5 5 1 . . . Energy Gun 1 | . . . . . . 4 9 5 5 7 . 6 2 . . . . . . . . . . . . . . . . . . . . Energy Cannon 1 | . . . . . . 5 . 3 7 6 2 5 2 . . . . . . . . . . . . 1 . 1 . . . . 1 Ballistic Gun 2 | . 10 13 14 15 17 8 7 6 1 . 9 2 . . . . . . . . . . . . . . . . . . . . . Ballistic Cannon 2 | . 16 14 14 11 . . . . . . . . . . . . . . . . . . . . . . . 1 . 3 2 . . Special Weapon 1 | . . . . . . . . 2 . . 2 . 3 6 1 . . . . . 4 2 . . . . . . . . 1 4 1 Slashing Weapon 1 | . . . . . . . . . . . . . 3 6 2 3 4 . 5 4 5 2 . . 1 1 2 3 . 3 3 4 1 Peak Build Rating 168 | 6 7 11 12 12 27 32 41 40 44 74 73 76 84 69 84 65 66 57 58 97 103 105 103 103 110 104 122 131 123 139 139 154 168 Average Rating 78 | 4 6 10 11 9 21 27 34 33 35 67 70 74 71 67 74 57 59 55 57 83 92 97 101 102 101 103 115 122 123 131 136 148 158 On Entrance 68 | . 6 7 11 12 12 24 32 35 33 36 73 71 76 69 67 61 60 53 57 57 85 95 102 103 103 104 104 120 123 123 135 138 151 Avg Prop Armor Cover (%) 4 | 15 12 11 . . . . . . . 4 4 . 3 4 4 . . . . 1 2 1 . . . . . . . 2 1 1 3 Naked Turns . | . . . . . . . . . . . . . . . . . . . . . . . . . . . . . . . . . . Heaviest Build 121 | 11 27 48 48 48 47 46 46 47 47 73 89 93 93 62 77 61 56 51 54 66 56 79 66 66 66 67 102 89 85 86 91 107 121 Greatest Support 175 | 10 10 40 40 40 82 82 46 50 50 147 147 147 175 63 76 77 74 63 55 84 61 83 75 75 75 75 96 95 95 95 103 107 121 Greatest Overweight (x) 8 | 1 2 2 1 2 1 2 . 2 . . . . 8 . 1 . . . . 1 . 1 . . . . 1 . . . . 1 1 Average Overweight (x) . | . 1 1 1 1 . . . . . . . . . . . . . . . . . . . . . . . . . . . . . Largest Inventory Capacity 20 | 8 15 20 20 20 15 15 15 15 15 15 20 20 20 20 20 20 20 20 20 20 20 20 20 20 20 20 20 20 20 20 20 20 20 Average Capacity 18 | 7 12 17 20 16 15 15 15 15 15 15 15 20 18 20 20 20 20 20 20 20 20 20 20 20 20 20 20 20 20 20 20 20 20 Most Carried 20 | 5 13 18 19 19 15 15 15 15 15 15 16 19 20 20 20 17 16 15 17 20 19 20 20 20 20 20 20 20 19 20 20 20 20 Average Carried 17 | 3 8 15 18 13 14 13 14 13 14 14 14 16 17 20 17 15 14 15 16 18 18 19 19 19 19 19 19 19 19 18 19 19 19 Final Capacity 20 | 8 15 20 20 15 15 15 15 15 15 15 20 20 20 20 20 20 20 20 20 20 20 20 20 20 20 20 20 20 20 20 20 20 20 Final Carried 20 | 5 13 18 19 13 15 13 15 11 14 15 16 19 20 20 18 15 15 15 17 19 19 20 20 20 20 20 20 19 19 20 20 20 14 Class Distribution -------------------- 35% | Mutant 15% | Scavenger-Mutant 14% | Hacker-Mutant 10% | Scientist-Mutant 6% | Scout 5% | Hacker-Scout 3% | Scavenger-Sprinter Dominant Class ---------------- Mutant | -10/Materials Mutant | -10/Mines Mutant | -10/Exiles Mutant | -9/Mines Mutant | -8/Materials Scavenger-Mutant | -8/Garrison Scavenger-Mutant | -8/Materials Scavenger-Mutant | -8/Garrison Mutant | -7/Factory Mutant | -7/Garrison Commander-Mutant | -7/Factory Mutant | -7/Garrison Mutant | -6/Factory Hacker-Mutant | -6/Waste Mutant | -6/Factory Mutant | -6/Lower Caves Mutant | -6/Lower Caves Scavenger-Mutant | -6/Zion Mutant | -5/Proximity Caves Hacker-Scout | -5/Factory Hacker-Scout | -5/Waste Hacker-Mutant | -5/Factory Hacker-Mutant | -5/Upper Caves Hacker-Mutant | -5/Upper Caves Hacker-Mutant | -5/Zhirov Hacker-Mutant | -4/Proximity Caves Scientist-Mutant | -4/Factory Scout | -4/Armory Scout | -4/Lab Scientist-Ninja | -3/Research Mutant | -3/Garrison Scavenger-Mutant | -2/Research Scavenger-Sprinter | -1/Access Resources | -11 -10 -10 -10 -9 -8 -8 -8 -8 -7 -7 -7 -7 -6 -6 -6 -6 -6 -6 -5 -5 -5 -5 -5 -5 -5 -4 -4 -4 -4 -3 -3 -2 -1 ----------- Run | Yrd Mat Min Exi Min Mat Gar Mat Gar Fac Gar Fac Gar Fac Was Fac Low Low Zio Pro Fac Was Fac Upp Upp Zhi Pro Fac Arm Lab Res Gar Res Acc Matter Collected 22899 | 290 534 350 . 250 163 326 491 507 78 70 533 213 333 . 5519 43 73 10 10 833 . 1883 284 120 116 94 4707 691 . 751 1263 190 2174 Remotely 14152 | . 72 350 . . . . . . . . 238 . . . 4093 . 73 10 10 425 . 847 284 120 116 34 4017 341 . 566 843 . 1713 Salvage Created 25394 | 114 424 70 . 174 197 764 295 527 189 528 415 256 777 . 5821 68 23 . 85 1414 . 2661 184 79 224 79 4988 424 . 500 1147 100 2867 Parts 1096 | 6 21 8 . 8 9 39 13 25 5 22 12 12 38 . 246 . . . 5 77 . 111 4 . 4 8 190 24 . 18 51 11 129 Haulers Intercepted 16 | . 1 . . . . . 1 . . . . . 2 . 3 . . . . 2 . 4 . . . . 1 . . . . . 2 Recyclers Shooed 16 | . 1 . . . . . . . . . . . 1 . 6 . . . . . . 2 . . . . 4 . . . . . 2 Parts Field Recycled 40 | . . . . . . . . . . . . . . . . . . . . . . . . . . . 40 . . . . . . Retrieved Matter 156 | . . . . . . . . . . . . . . . . . . . . . . . . . . . 156 . . . . . . Parts Self-Destructed 21 | . . . . . . . . . . . . . . . . . 8 . 5 . . . 5 . 2 1 . . . . . . . Prevented . | . . . . . . . . . . . . . . . . . . . . . . . . . . . . . . . . . . Parts Restored . | . . . . . . . . . . . . . . . . . . . . . . . . . . . . . . . . . . Kills | -11 -10 -10 -10 -9 -8 -8 -8 -8 -7 -7 -7 -7 -6 -6 -6 -6 -6 -6 -5 -5 -5 -5 -5 -5 -5 -4 -4 -4 -4 -3 -3 -2 -1 ------- Run | Yrd Mat Min Exi Min Mat Gar Mat Gar Fac Gar Fac Gar Fac Was Fac Low Low Zio Pro Fac Was Fac Upp Upp Zhi Pro Fac Arm Lab Res Gar Res Acc Combat Hostiles Destroyed 500 | . 9 5 . 3 3 18 8 14 3 14 7 8 1 . 103 . 2 . 1 19 . 33 7 1 . 7 128 13 . 8 20 . 65 Melee 13 | . . . . . . . . . . . . . 1 . 6 . . . 1 3 . 1 1 . . . . . . . . . . Guns 55 | . 4 2 . 3 3 13 3 10 1 5 7 4 . . . . . . . . . . . . . . . . . . . . . Cannons 53 | . 5 3 . . . 5 . 2 2 4 . 1 . . 6 . . . . 1 . 3 . . . . 6 1 . 8 . . 6 AOE 376 | . . . . . . . 5 2 . 5 . 3 . . 89 . 2 . . 15 . 29 6 1 . 7 122 12 . . 20 . 58 Classes Destroyed 28 | 2 5 1 . . 1 3 2 2 . 1 . . . . 4 . . . 1 . . . . 1 . . 1 . . . 1 . 3 Worker 58 | . . . . . . . . . . . . . . . 17 . . . . 5 . 13 . . . . 11 . . . . 1 11 Builder 58 | . . . . . . . 1 . . . . . 2 . 15 . . . . 6 . 6 . . . . 14 . . 1 . 1 12 Tunneler 10 | 1 . 1 . . . . 1 . . . . . 1 . 1 . . . . . . 4 . . . . 1 . . . . . . Hauler 16 | . 1 . . . . . 1 . . . . . 2 . 3 . . . . 2 . 4 . . . . 1 . . . . . 2 Recycler 56 | 1 1 . . . . . . . . . 1 . 3 . 21 . . . . 3 . 10 . . . . 11 . . . . . 5 Minesweeper 1 | . . . . . . . . . . . . . . . . . . . 1 . . . . . . . . . . . . . . Mechanic 15 | . . . . . . . 1 . . . . 1 . . 7 . . . . 1 . 1 . . . . 4 . . . . . . Operator 14 | . 2 . . . 2 . . . . . . . 1 . 1 . . . . 1 . 2 . . . . . 3 . . . 1 1 Drone 8 | . . . . . . . . . . . . . . . 8 . . . . . . . . . . . . . . . . . . Watcher 30 | . 2 . . . . . . . 1 . . . . . 8 . . . . 1 . 6 . . . . 7 2 . . . 1 2 Swarmer 82 | . 3 3 . . . 3 2 3 . 2 . . . . 2 . . . . 4 . 14 . . . 7 14 . . . 9 . 16 Cutter 2 | . . . . . . 2 . . . . . . . . . . . . . . . . . . . . . . . . . . . Saboteur 14 | . . . . . . . . . . . . . . . . . . . . . . . . . . . 7 5 . . . . 2 Grunt 209 | . 6 . . 2 1 6 3 5 3 9 4 3 . . 47 . 2 . . 6 . 6 7 . . . 61 7 . 5 4 . 22 Brawler 13 | . . . . . . . . . . 1 1 . . . 5 . . . . . . . . . . . 5 . . . . . 1 Duelist 19 | . . . . . . 1 . 1 . . . . . . 9 . . . . . . . . . . . 7 . . . . . 1 Protector 13 | . . . . . . . . . . . . . . . 5 . . . . . . . . . . . 6 . . . . . 2 Sentry 26 | . . . . . 2 3 3 1 . . . . . . 2 . . . . 4 . 3 . . . . 5 1 . . . . 2 Specialist 5 | . . . . . . 3 . . . . . . . . 2 . . . . . . . . . . . . . . . . . . Hunter 49 | . . . . . . . . 2 . 1 2 1 . . 15 . . . 1 4 . 7 . . . . 6 . . . 6 . 4 Programmer 63 | . . . . . . . . 2 . 1 . 4 1 . 9 . . . . 2 . 4 . 1 . . 24 . . 3 . . 12 Heavy 1 | . . . . . . . . . . . . . . . 1 . . . . . . . . . . . . . . . . . . Behemoth 1 | . . . . . . . . . . . . . . . . . . . . . . . . . . . . . . . 1 . . Investigator 2 | . . . . . . . . . . . . . . . . . . . . . . . . . . . . . . . . . 2 Striker 1 | . . . . . . . . . . . . . . . . . . . . . . . . . . . . . . . . . 1 Executioner 2 | . . . . . . . . . . . . . . . . . . . . . . . . . . . . . . . . . 2 Decomposer 1 | . . . . . . . . . . . . . . . . . . . . . . . 1 . . . . . . . . . . Samaritan 2 | . . . . . . . . . . . . . . . . . . . . . . . . 2 . . . . . . . . . Assembled 2 | . . 2 . . . . . . . . . . . . . . . . . . . . . . . . . . . . . . . Best Kill Streak 21 | 1 3 3 . 2 3 3 6 3 3 7 5 9 3 . 16 . 2 . 2 6 . 11 4 1 . 4 21 8 . 3 13 2 17 Combat Bots Only 18 | . 3 3 . 2 2 3 3 3 3 7 5 8 1 . 11 . 2 . 1 6 . 5 4 1 . 4 18 8 . 3 13 . 13 Max Kills in Single Turn 6 | 1 1 1 . 1 1 1 3 1 1 3 1 3 1 . 4 . 2 . 1 3 . 6 2 2 . 3 5 3 . 1 4 1 4 Gunslinging . | . . . . . . . . . . . . . . . . . . . . . . . . . . . . . . . . . . Exploded 4 | . . . . . . . 2 1 . 2 . 1 . . 3 . 2 . . 2 . 4 2 1 . 3 4 3 . . 4 . 4 Melee 1 | . . . . . . . . . . . . . 1 . 1 . . . 1 1 . 1 1 . . . . . . . . . . Uniques/NPCs Destroyed 2 | . . . . 1 . . . . . . . . . . 1 . . . . . . . . . . . . . . . . . . YI-UF0 (-9/Mines) QV-33N (-6/Factory) Combat | -11 -10 -10 -10 -9 -8 -8 -8 -8 -7 -7 -7 -7 -6 -6 -6 -6 -6 -6 -5 -5 -5 -5 -5 -5 -5 -4 -4 -4 -4 -3 -3 -2 -1 -------- Run | Yrd Mat Min Exi Min Mat Gar Mat Gar Fac Gar Fac Gar Fac Was Fac Low Low Zio Pro Fac Was Fac Upp Upp Zhi Pro Fac Arm Lab Res Gar Res Acc Hostile Shots Fired 1279 | . 41 11 . 33 16 151 22 84 17 50 69 54 35 . 229 16 1 . 8 50 . 16 4 4 . 5 51 2 . 37 3 4 266 Missed 436 | . 8 2 . 13 5 37 6 18 3 12 17 11 18 . 85 7 . . 2 17 . 9 3 3 . 3 33 1 . 18 3 2 100 Hits 843 | . 33 9 . 20 11 114 16 66 14 38 52 43 17 . 144 9 1 . 6 33 . 7 1 1 . 2 18 1 . 19 . 2 166 Melee 29 | . . . . . . 5 . 4 . . . . . . 3 . . . . . . . . . . . . . . . . . 17 Projectile 814 | . 33 9 . 20 11 109 16 62 14 38 52 43 17 . 141 9 1 . 6 33 . 7 1 1 . 2 18 1 . 19 . 2 149 AOE 19 | . . . . 16 . 2 . . . . . . . . . . . . . . . . . . . . . . . . . . 1 Critical Strikes 57 | . . . . . . 3 . 4 1 1 2 1 1 . 16 . . . . 3 . 1 . . . . 2 . . 5 . . 17 Actively Blocked 5 | . . . . . . 1 . . . . . . 1 . 2 . . . . . . 1 . . . . . . . . . . . Part Disruptions 5 | . . . . . . . . . . . . 3 . . 1 . . . . 1 . . . . . . . . . . . . . Damage Taken 15106 | . 458 71 . 517 122 1366 256 1013 227 611 817 657 222 . 2341 172 18 . 91 804 . 111 22 21 . 40 438 23 . 524 . 47 4117 Core 2854 | . 49 8 . 89 13 192 32 169 47 15 63 44 . . 256 . . . 44 90 . . . . . . 88 . . 50 . . 1605 Absorbed by Shields 749 | . . . . . 48 244 . . . . . . . . . . . . . . . . . . . . . . . . . . 457 Reduced by Siege Mode 65 | . . . . . . . . . . 36 17 12 . . . . . . . . . . . . . . . . . . . . . Redirected to Shielding 374 | . . . . 12 . 51 . . . . . . 37 . 63 . . . . 55 . 13 . 13 . 25 41 . . 64 . . . Regen/Repaired (Parts) 2100 | . 157 . . . . . 368 77 . 63 327 . 318 . 110 . . . . 556 . 47 . . . . . . . . . 72 5 Core Remaining (%) 75 | 100 . . . 41 . . . 26 . . . 75 . . . . . . 64 . . . . . . 91 . . 84 . 96 100 . Volleys Fired 1399 | 5 50 9 . 15 18 59 16 66 15 46 47 20 20 2 266 . 3 . . 19 3 54 10 6 . 12 298 33 . 58 46 1 202 Largest 2 | 2 2 2 . 2 2 2 2 2 2 2 2 2 2 1 1 . 1 . . 1 1 1 1 1 . 1 1 1 . 1 1 1 1 Hottest 155 | 40 60 63 . 56 100 155 108 98 95 95 155 95 95 5 80 . 46 . . 51 7 51 46 46 . 46 90 51 . 51 46 10 120 Shots Fired 1670 | 10 100 18 . 30 35 108 25 87 29 75 80 37 22 2 266 . 3 . . 19 3 55 10 6 . 12 298 33 . 58 46 1 202 Gun 423 | 10 46 9 . 30 34 80 18 64 14 30 68 17 3 . . . . . . . . . . . . . . . . . . . . Cannon 473 | . 54 9 . . . 28 . 15 15 40 6 15 2 . 62 . . . . 1 . 11 . . . 8 63 13 . 58 . . 73 Launcher 717 | . . . . . . . 6 3 . 5 . 5 . . 204 . 3 . . 16 . 44 10 6 . 4 235 20 . . 42 . 114 Special 57 | . . . . . 1 . 1 5 . . 6 . 17 2 . . . . . 2 3 . . . . . . . . . 4 1 15 Kinetic 525 | 10 100 18 . 30 34 71 9 36 . . 68 . . . . . . . . 1 . 11 . . . . 57 13 . 58 . . 9 Thermal 348 | . . . . . 1 37 10 43 29 68 6 32 5 . 62 . . . . . . . . . . 8 6 . . . . . 41 Explosive 717 | . . . . . . . 6 3 . 5 . 5 . . 204 . 3 . . 16 . 44 10 6 . 4 235 20 . . 42 . 114 Electromagnetic 25 | . . . . . . . . . . 2 . . . . . . . . . . . . . . . . . . . . . . 23 Robot Hit Streak 32 | 4 8 10 . 11 16 17 6 7 6 19 23 23 7 6 32 . . . . 4 2 10 12 . . . 16 12 . 7 3 2 13 Robot Miss Streak 8 | 1 8 2 . 2 6 5 2 4 2 3 3 2 3 1 3 . . . . . 1 1 . . . . 2 2 . 4 1 . 4 Penetration Max 1 | . . . . . . . . . . . 1 . . . . . . . . . . . . . . . 1 . . 1 . . . Secondary Targets 9 | . 1 . . . . 2 . 4 . . 2 . . . . . . . . . . . . . . . . . . . . . . Max Gunslinging Chain 1 | . 1 . . . . 1 . 1 . . 1 . . . . . . . . . . . . . . . . . . . . . . Capacitor 56 | . . . . . . . . . . . . . . . . . . . . . . . . . . . . . . . . . 56 Shots Hit Robots 910 | 7 54 12 . 16 22 70 20 42 22 48 62 29 35 1 126 1 . . 7 46 2 55 4 . 5 . 76 12 . 34 22 9 71 Core Hits 1550 | 4 21 6 . 5 11 33 26 29 9 32 16 22 9 . 326 1 3 . 3 47 . 105 18 7 2 9 443 65 . 10 50 3 235 Critical Kills 24 | . . 1 . . . . . . . . . . . . 1 . . . . 1 . 5 . . . . 5 1 . 9 . . 1 Critical Parts Destroyed 28 | . . . . . . . 1 1 . . 1 . . . . . . . . . . 2 . . . . 8 . . 14 . . 1 Critical Strikes 74 | . . 1 . . . 1 3 3 1 2 1 . . . 3 . . . 1 5 . 8 . . . . 13 2 . 23 4 . 3 Burn 8 | . . . . . . 1 2 2 1 2 . . . . . . . . . . . . . . . . . . . . . . . Meltdown 1 | . . . . . . . . . . . . . . . 1 . . . . . . . . . . . . . . . . . . Destroy 51 | . . 1 . . . . 1 1 . . 1 . . . . . . . . 1 . 5 . . . . 13 2 . 23 . . 3 Smash 2 | . . . . . . . . . . . . . . . . . . . . . . 2 . . . . . . . . . . . Sever 12 | . . . . . . . . . . . . . . . 2 . . . 1 4 . 1 . . . . . . . . 4 . . Melee Attacks 523 | . . . . . . . 6 . . . . . 48 . 104 4 2 . 11 86 . 77 5 1 5 1 53 8 . 11 53 17 31 Impact 37 | . . . . . . . 6 . . . . . . . . . . . . . . 31 . . . . . . . . . . . Slashing 486 | . . . . . . . . . . . . . 48 . 104 4 2 . 11 86 . 46 5 1 5 1 53 8 . 11 53 17 31 Piercing . | . . . . . . . . . . . . . . . . . . . . . . . . . . . . . . . . . . Sneak Attacks 113 | . . . . . . . 1 . . . . . 9 . 33 . . . 2 18 . 24 . . . . 16 . . . . 6 4 Combat Hostiles 2 | . . . . . . . . . . . . . . . . . . . . 1 . 1 . . . . . . . . . . . Follow-up Attacks . | . . . . . . . . . . . . . . . . . . . . . . . . . . . . . . . . . . Damage Inflicted 121628 | 60 764 230 . 308 428 1417 1004 1011 554 1575 1183 1153 1354 . 29269 97 302 . 371 5499 . 9350 1320 451 465 705 33154 3818 . 634 5972 643 18537 Guns 5349 | 60 289 145 . 308 411 1013 265 636 221 538 1079 365 19 . . . . . . . . . . . . . . . . . . . . Cannons 6600 | . 472 85 . . . 404 . 108 322 459 104 263 50 . 1064 . . . . 13 . 140 . . . . 585 115 . 634 . . 1782 Explosions 92565 | . . . . . . . 600 267 . 578 . 525 . . 24286 . 302 . . 2662 . 6249 1222 451 . 705 30737 3606 . . 4347 . 16028 Melee 16963 | . . . . . . . 108 . . . . . 1277 . 3919 97 . . 371 2824 . 2960 98 . 465 . 1832 97 . . 1625 643 647 Ramming 151 | . 3 . . . 17 . 31 . 11 . . . 8 . . . . . . . . 1 . . . . . . . . . . 80 Kinetic 5722 | 60 761 230 . 308 411 860 93 346 . . 1079 . . . . . . . . 13 . 140 . . . . 557 115 . 634 . . 115 Thermal 9056 | . . . . . . 557 172 398 543 997 104 628 69 . 2046 . . . . 517 . 1322 . . . . 679 . . . . . 1024 Explosive 88928 | . . . . . . . 600 267 . 578 . 525 . . 23211 . 302 . . 2145 . 4927 1222 451 . 705 30086 3606 . . 4347 . 15956 Electromagnetic 808 | . . . . . . . . . . . . . . . 93 . . . . . . . . . . . . . . . . . 715 Impact 1146 | . . . . . . . 108 . . . . . . . . . . . . . . 1038 . . . . . . . . . . . Slashing 15817 | . . . . . . . . . . . . . 1277 . 3919 97 . . 371 2824 . 1922 98 . 465 . 1832 97 . . 1625 643 647 Piercing . | . . . . . . . . . . . . . . . . . . . . . . . . . . . . . . . . . . Highest Corruption 25 | . . . . . . . . . . . . 1 1 7 8 6 6 6 . 3 10 10 . . . . . . . 7 7 . 25 Average Corruption 4 | . . . . . . . . . . . . 1 1 4 4 6 6 6 . 2 7 7 . . . . . . . 5 7 . 2 Corruption Purged 23 | . . . . . . . . . . . . . . . 13 . . . . . . 10 . . . . . . . . . . . Corruption Blocked . | . . . . . . . . . . . . . . . . . . . . . . . . . . . . . . . . . . Effects 145 | . . . . . . . . . . . . 2 5 1 28 3 6 1 . 9 1 44 . . . . . . . 2 25 . 18 Message Errors 41 | . . . . . . . . . . . . 1 1 . 8 . 2 . . 2 1 12 . . . . . . . . 9 . 5 Matter Fused 28 | . . . . . . . . . . . . . 2 . 8 1 . . . 1 . 8 . . . . . . . . 3 . 5 Heat Flow Errors 17 | . . . . . . . . . . . . . 1 1 3 2 . . . 3 . 3 . . . . . . . . 2 . 2 Energy Discharges 23 | . . . . . . . . . . . . . . . 2 . 2 1 . 1 . 10 . . . . . . . . 4 . 3 Parts Rejected 1 | . . . . . . . . . . . . . . . . . . . . . . . . . . . . . . . . . 1 Parts Fused 4 | . . . . . . . . . . . . 1 . . 2 . . . . . . . . . . . . . . 1 . . . Data Loss (minor) 13 | . . . . . . . . . . . . . . . . . 2 . . 2 . 4 . . . . . . . 1 4 . . Data Loss (major) 8 | . . . . . . . . . . . . . 1 . 2 . . . . . . 1 . . . . . . . . 3 . 1 Misfires 2 | . . . . . . . . . . . . . . . 1 . . . . . . 1 . . . . . . . . . . . Alerts 3 | . . . . . . . . . . . . . . . 1 . . . . . . 2 . . . . . . . . . . . Misdirections 4 | . . . . . . . . . . . . . . . . . . . . . . 3 . . . . . . . . . . 1 Weapon Failures 1 | . . . . . . . . . . . . . . . 1 . . . . . . . . . . . . . . . . . . Overload Shots 7 | . . . . . . . . . . . . . 1 . . . . . . . . . . . . . 3 . . . . . 3 Effects 1 | . . . . . . . . . . . . . . . . . . . . . . . . . . . 1 . . . . . . Energy Bleed 1 | . . . . . . . . . . . . . . . . . . . . . . . . . . . 1 . . . . . . Overflow Damage 6818 | . 43 . . . . . 4 10 . 42 . 14 218 . 1744 . 3 . 79 687 . 1195 45 12 186 119 1467 86 . 10 118 139 597 Projectiles 219 | . 43 . . . . . . 10 . 21 . . . . 11 . . . . . . . . . . . . . . 10 . . 124 Explosions 3633 | . . . . . . . 4 . . 21 . 14 . . 1178 . 3 . . 209 . 475 43 12 . 119 1018 86 . . 118 . 333 Melee 2966 | . . . . . . . . . . . . . 218 . 555 . . . 79 478 . 720 2 . 186 . 449 . . . . 139 140 Knockbacks 24 | . 5 2 . . . . . . . . . . . . . . . . . . . 4 . . . . 5 . . 4 . . 4 Impact 4 | . . . . . . . . . . . . . . . . . . . . . . 4 . . . . . . . . . . . Kinetic 20 | . 5 2 . . . . . . . . . . . . . . . . . . . . . . . . 5 . . 4 . . 4 Secondary . | . . . . . . . . . . . . . . . . . . . . . . . . . . . . . . . . . . Self-Inflicted Damage 255 | . 1 . . . . . . 40 . 29 . . . . 18 . . . . 44 . 21 . . . . 4 . . . . . 98 Shots 11 | . . . . . . . . 1 . 3 . . . . 1 . . . . 1 . 1 . . . . 1 . . . . . 3 Rammed 11 | . 1 . . . 3 . . . . . . . 1 . . . . . . . . 1 . . . . . . . . . . 5 Targets Rammed 14 | . 1 . . . 3 . 1 . 2 . . . 1 . . . . . . . . 1 . . . . . . . . . . 5 Kicked 3 | . . . . . . . 1 . 2 . . . . . . . . . . . . . . . . . . . . . . . . Crushed . | . . . . . . . . . . . . . . . . . . . . . . . . . . . . . . . . . . Highest Temperature 351 | . 4 . . 18 20 211 202 265 9 22 351 43 265 117 226 181 7 . . 266 . 217 15 24 . . 306 . . . 212 12 224 Average Temperature 66 | . 2 . . 9 5 62 74 78 9 3 187 17 75 67 47 65 3 . . 51 . 44 6 8 . . 83 . . . 96 8 49 Received Heat Transfer 2483 | . 156 . . 48 48 257 99 396 144 288 207 171 48 . 235 72 9 . . 63 . 12 . . . 9 33 . . 72 . . 116 Effects 7 | . . . . . . . . . . . 4 . . . . . . . . . . . . . . . 3 . . . . . . Shutdowns 1 | . . . . . . . . . . . 1 . . . . . . . . . . . . . . . . . . . . . . Energy Bleed 2 | . . . . . . . . . . . 2 . . . . . . . . . . . . . . . . . . . . . . Interference 3 | . . . . . . . . . . . . . . . . . . . . . . . . . . . 3 . . . . . . Short Circuit 1 | . . . . . . . . . . . 1 . . . . . . . . . . . . . . . . . . . . . . Siege Activations 4 | . . . . . . . . . . 2 1 1 . . . . . . . . . . . . . . . . . . . . . Total Turns 130 | . . . . . . . . . . 60 34 36 . . . . . . . . . . . . . . . . . . . . . Longest Duration 38 | . . . . . . . . . . 38 34 36 . . . . . . . . . . . . . . . . . . . . . Martial Activations . | . . . . . . . . . . . . . . . . . . . . . . . . . . . . . . . . . . Shielding Activations . | . . . . . . . . . . . . . . . . . . . . . . . . . . . . . . . . . . Robots Disrupted . | . . . . . . . . . . . . . . . . . . . . . . . . . . . . . . . . . . Combat Hostiles . | . . . . . . . . . . . . . . . . . . . . . . . . . . . . . . . . . . Robots Corrupted 8 | . . . . . . . . . . . . . . . . . . . . . . 6 . . . . . . . . . . 2 Combat Hostiles 1 | . . . . . . . . . . . . . . . . . . . . . . . . . . . . . . . . . 1 Parts Fried 30 | . . . . . . . . . 1 . . . . . 5 . . . . . . 14 . . . . . . . . . . 10 Impact Corruptions 12 | . . . . . . . . . . . . . . . . . . . . . . 11 . . . . . . . . . . 1 Robots Melted 1 | . . . . . . . . . . . . . . . 1 . . . . . . . . . . . . . . . . . . Combat Hostiles 1 | . . . . . . . . . . . . . . . 1 . . . . . . . . . . . . . . . . . . Parts Melted 17 | . . . . . . 2 1 1 2 3 . 2 . . 4 . . . . . . 2 . . . . . . . . . . . Heat Transferred 10419 | . . . . . . 1133 444 719 925 1776 187 725 111 . 1612 . . . . 350 . 850 . . . . 687 . . . . . 900 Parts Sabotaged 4 | . . . . . . . . . . . . . . . 1 . . . . . . . . . . . . . . . . . 3 Parts Stolen . | . . . . . . . . . . . . . . . . . . . . . . . . . . . . . . . . . . Parts Stripped . | . . . . . . . . . . . . . . . . . . . . . . . . . . . . . . . . . . Power Chain Reactions . | . . . . . . . . . . . . . . . . . . . . . . . . . . . . . . . . . . Alert | -11 -10 -10 -10 -9 -8 -8 -8 -8 -7 -7 -7 -7 -6 -6 -6 -6 -6 -6 -5 -5 -5 -5 -5 -5 -5 -4 -4 -4 -4 -3 -3 -2 -1 ------- Run | Yrd Mat Min Exi Min Mat Gar Mat Gar Fac Gar Fac Gar Fac Was Fac Low Low Zio Pro Fac Was Fac Upp Upp Zhi Pro Fac Arm Lab Res Gar Res Acc Maximum Alert Level 5 | . . . . . . 2 1 2 1 2 1 1 . . 5 . . . . 3 1 4 . . . . 5 5 . . 2 1 5 Low Security (%) 40 | 100 100 100 . 100 100 24 70 18 53 23 1 34 100 100 21 . . . . 56 . 24 . . . . 7 . . 100 37 . 3 Level 1 16 | . . . . . . 50 29 13 46 28 98 65 . . 8 . . . . 6 100 26 . . . . . . . . 5 100 4 Level 2 12 | . . . . . . 24 . 68 . 47 . . . . 7 . . . . 19 . 16 . . . . 1 . . . 57 . 29 Level 3 5 | . . . . . . . . . . . . . . . 4 . . . . 17 . 12 . . . . 13 . . . . . 5 Level 4 7 | . . . . . . . . . . . . . . . 20 . . . . . . 20 . . . . 8 . . . . . 27 Level 5 5 | . . . . . . . . . . . . . . . 7 . . . . . . . . . . . 14 100 . . . . 1 High Security 12 | . . . . . . . . . . . . . . . 29 . . . . . . . . . . . 54 . . . . . 27 Max Security . | . . . . . . . . . . . . . . . . . . . . . . . . . . . . . . . . . . Sterilizations 1 | . . . . . . . . . . . . . . . . . . . . . . . . . . . 1 . . . . . . Peak Influence 3515 | 5 118 85 . 51 60 526 256 559 293 577 326 333 174 12 3453 . . . . 729 251 1451 . . . . 3515 2257 . 75 686 389 2245 Initial 1722 | . 3 43 . . . 16 256 134 293 125 302 138 174 12 1 . . . . . 251 161 . . . . 37 1722 . . 8 385 151 Average 713 | 2 50 16 . 4 11 266 129 402 203 361 260 261 29 8 1399 . . . . 319 242 555 . . . . 2079 1919 . 22 337 312 1168 Influence Increases 20189 | 10 414 90 . 53 97 610 348 545 102 452 204 215 227 . 4077 52 45 . 39 1177 . 2158 149 23 8 121 4208 977 . 227 748 81 2732 Destroy 0b10 Robot/C 7760 | . 180 60 . 40 60 360 160 300 60 280 140 120 15 . 1380 . 45 . 15 285 . 495 105 15 . 105 1860 285 . 120 300 . 975 Destroy 0b10 Robot/NC 1137 | 10 30 5 . . 10 . 20 . 5 . 5 4 36 . 316 4 . . 4 76 . 180 . . 8 . 220 20 . 4 24 16 140 Destroy Leader 1388 | . 46 10 . 10 20 30 62 40 12 20 40 24 12 . 254 . . . 8 78 . 124 8 8 . 16 312 44 . 24 40 2 144 Allied During Kill 351 | . . . . . . . . 5 . . 5 . . . 17 . . . . . . 2 . . . . 74 248 . . . . . Trap Triggered on 0b10 306 | . . . . . . 20 10 50 10 . . . . . 80 . . . . 32 . 104 . . . . . . . . . . . Successful Hack 489 | . 35 . . . 4 30 34 . . . 13 . 38 . 43 . . . . 12 . 113 . . . . 42 . . 23 . 36 66 Select Force Hacks 53 | . 30 . . . . . . . . . . . 23 . . . . . . . . . . . . . . . . . . . . Disable Machine 1638 | . 30 15 . . . . . . . 45 . . . . 552 . . . . 156 . 312 . . . . 324 120 . 12 . . 72 Anti-Garrison Action 352 | . . . . . . 100 . 50 . 50 . 38 . . . . . . . . . . . . . . . . . . 114 . . Destroy Structure 5659 | . 3 . . 3 3 25 47 70 . 42 1 29 19 . 1243 . . . . 454 . 792 . . . . 1244 248 . 20 258 27 1131 Partial Spotted 156 | . . . . . . . . . . . . . 12 . 12 . . . . 24 . 24 . . . . 12 12 . 12 . . 48 Lose Combat Pursuer 900 | . 60 . . . . 45 15 30 15 15 . . 72 . 180 48 . . 12 60 . 12 36 . . . 120 . . 12 12 . 156 Influence Decreases 18016 | 5 308 201 . 53 71 110 667 193 482 54 583 80 523 35 626 1358 509 1683 39 459 487 943 656 239 731 60 754 2235 2257 216 73 515 811 Entered New Map 11087 | . 2 68 . . . 10 270 73 266 54 275 60 159 25 1 1278 409 1683 . . 467 70 536 179 723 . 24 1793 2257 . 3 301 101 Time Decay 5162 | 5 296 133 . 52 71 . 397 . 206 . 278 . 342 10 435 70 70 . 39 389 20 553 120 60 8 60 440 222 . 202 . 214 470 Lost Part 604 | . 10 . . . . 100 . 60 10 . . . . . 120 10 10 . . 30 . . . . . . 20 . . 14 . . 220 Lost Ally 863 | . . . . 1 . . . 60 . . 30 20 22 . 70 . 20 . . 40 . 20 . . . . 270 220 . . 70 . 20 Purge Threat 300 | . . . . . . . . . . . . . . . . . . . . . . 300 . . . . . . . . . . . Squads Dispatched 151 | . 2 . . 1 2 . . . 1 . 2 . 7 . 54 . . . . 13 . 6 . . . . 30 4 . 3 . 1 25 Investigation 21 | . 1 . . 1 . . . . . . 1 . 3 . 4 . . . . 5 . 1 . . . . . 1 . 1 . . 3 Extermination 18 | . . . . . . . . . . . . . 2 . 4 . . . . 2 . 2 . . . . 2 1 . 1 . 1 3 Reinforcement 31 | . 1 . . . 2 . . . 1 . 1 . 2 . 10 . . . . 3 . 3 . . . . 3 . . 1 . . 4 Assault 78 | . . . . . . . . . . . . . . . 36 . . . . . . . . . . . 25 2 . . . . 15 Garrison 3 | . . . . . . . . . . . . . . . . . . . . 3 . . . . . . . . . . . . . Intercept . | . . . . . . . . . . . . . . . . . . . . . . . . . . . . . . . . . . Searches Triggered . | . . . . . . . . . . . . . . . . . . . . . . . . . . . . . . . . . . Unchained Authorized 4 | . . . . . . . . . . . . . . . 1 . . . . . . . . . . . . 1 . 1 . 1 . Construction Impeded 10 | . . . . . . . . . . . . . . . 5 . . . . . . 1 . . . . 1 . . . . . 3 Haulers Reinforced 3 | . . . . . . . . . . . . . . . . . . . . 1 . 1 . . . . 1 . . . . . . Active Scanning Responses . | . . . . . . . . . . . . . . . . . . . . . . . . . . . . . . . . . . Cargo Convoy Interrupts 1 | . . . . . . . . . . . . . . . 1 . . . . . . . . . . . . . . . . . . Stealth | -11 -10 -10 -10 -9 -8 -8 -8 -8 -7 -7 -7 -7 -6 -6 -6 -6 -6 -6 -5 -5 -5 -5 -5 -5 -5 -4 -4 -4 -4 -3 -3 -2 -1 --------- Run | Yrd Mat Min Exi Min Mat Gar Mat Gar Fac Gar Fac Gar Fac Was Fac Low Low Zio Pro Fac Was Fac Upp Upp Zhi Pro Fac Arm Lab Res Gar Res Acc Distress Signals 30 | . 2 . . . 2 . 1 . . . 1 . 1 . 5 . . . . 3 . 4 . . . . 2 3 . 1 . . 5 Communications Jammed . | . . . . . . . . . . . . . . . . . . . . . . . . . . . . . . . . . . Distress Signals . | . . . . . . . . . . . . . . . . . . . . . . . . . . . . . . . . . . Times Spotted 586 | . 23 7 . 3 8 22 16 16 9 15 10 9 17 5 132 4 1 . 3 34 5 33 8 1 . 3 95 17 . 13 1 2 74 Peak Tracking Total 25 | . 4 3 . 2 3 5 5 4 3 7 3 3 4 4 12 4 2 . 1 15 3 5 4 1 . 2 14 11 . 5 5 1 25 Tactical Retreats 48 | . 4 . . . . 2 1 2 1 1 . . 4 . 9 1 . . 1 2 . 1 2 . . . 10 . . 1 1 . 5 Traps | -11 -10 -10 -10 -9 -8 -8 -8 -8 -7 -7 -7 -7 -6 -6 -6 -6 -6 -6 -5 -5 -5 -5 -5 -5 -5 -4 -4 -4 -4 -3 -3 -2 -1 ------- Run | Yrd Mat Min Exi Min Mat Gar Mat Gar Fac Gar Fac Gar Fac Was Fac Low Low Zio Pro Fac Was Fac Upp Upp Zhi Pro Fac Arm Lab Res Gar Res Acc Traps Triggered 27 | . 2 . . . . 3 . . . . . 1 1 . 7 . . . . 4 . 1 . . . . . . . 2 1 1 4 Indirectly . | . . . . . . . . . . . . . . . . . . . . . . . . . . . . . . . . . . Trap Hack Attempts . | . . . . . . . . . . . . . . . . . . . . . . . . . . . . . . . . . . Triggered . | . . . . . . . . . . . . . . . . . . . . . . . . . . . . . . . . . . Disarmed . | . . . . . . . . . . . . . . . . . . . . . . . . . . . . . . . . . . Reprogrammed . | . . . . . . . . . . . . . . . . . . . . . . . . . . . . . . . . . . Reused 37 | . . . . . . 2 1 5 1 . . . . . 10 . . . 1 4 . 13 . . . . . . . . . . . Traps Reconfigurated 149 | . . . . . . 5 2 24 14 . . . 4 . 26 . . . . 13 . 51 . . . . . 1 . . . 3 6 Traps Extracted . | . . . . . . . . . . . . . . . . . . . . . . . . . . . . . . . . . . Installed 2 | . . . . . . . . . . . . . . . . . . . 2 . . . . . . . . . . . . . . Triggered 37 | . . . . . . 2 1 5 1 . . . . . 10 . . . 1 4 . 13 . . . . . . . . . . . Machines | -11 -10 -10 -10 -9 -8 -8 -8 -8 -7 -7 -7 -7 -6 -6 -6 -6 -6 -6 -5 -5 -5 -5 -5 -5 -5 -4 -4 -4 -4 -3 -3 -2 -1 ---------- Run | Yrd Mat Min Exi Min Mat Gar Mat Gar Fac Gar Fac Gar Fac Was Fac Low Low Zio Pro Fac Was Fac Upp Upp Zhi Pro Fac Arm Lab Res Gar Res Acc Machines Disabled 148 | . 2 1 . . . 2 . 1 . 4 . 1 . . 46 . . . . 13 . 26 . 1 . . 31 10 . 1 3 . 6 Max in Single Turn 10 | . 1 1 . . . 1 . 1 . 1 . 1 . . 3 . . . . 5 . 10 . 1 . . 6 2 . 1 1 . 1 Garrison Access 14 | . . . . . . . . . . . . . 1 . 2 . . . . 2 . 4 . . . . 1 . . . . 1 3 Garrison Relay 8 | . . . . . . 2 . 1 . 1 . 1 . . . . . . . . . . . . . . . . . . 3 . . Machines Repaired . | . . . . . . . . . . . . . . . . . . . . . . . . . . . . . . . . . . Machines Dismantled . | . . . . . . . . . . . . . . . . . . . . . . . . . . . . . . . . . . Machines Sabotaged . | . . . . . . . . . . . . . . . . . . . . . . . . . . . . . . . . . . Overloaded Fab Kills . | . . . . . . . . . . . . . . . . . . . . . . . . . . . . . . . . . . Hacking | -11 -10 -10 -10 -9 -8 -8 -8 -8 -7 -7 -7 -7 -6 -6 -6 -6 -6 -6 -5 -5 -5 -5 -5 -5 -5 -4 -4 -4 -4 -3 -3 -2 -1 --------- Run | Yrd Mat Min Exi Min Mat Gar Mat Gar Fac Gar Fac Gar Fac Was Fac Low Low Zio Pro Fac Was Fac Upp Upp Zhi Pro Fac Arm Lab Res Gar Res Acc Machines Accessed 164 | . 8 . 2 1 2 2 10 . 5 . 5 . 18 . 24 . . . . 17 . 27 1 . 4 . 8 2 . 4 1 8 15 Terminals 85 | . 6 . . . . 2 7 . 2 . 1 . 10 . 11 . . . . 10 . 11 . . . . 4 2 . 2 1 6 10 Fabricators 21 | . . . . . . . . . 1 . 2 . 4 . 6 . . . . 2 . 6 . . . . . . . . . . . Repair Stations 14 | . 1 . . . . . 1 . 1 . 1 . 1 . 2 . . . . 3 . 2 . . . . . . . 1 . 1 . Recycling Units 7 | . 1 . . . . . . . . . . . . . 2 . . . . . . 2 . . . . 2 . . . . . . Scanalyzers 9 | . . . . . 1 . 1 . . . . . 1 . 1 . . . . . . 2 . . . . 1 . . . . . 2 Garrison Access 20 | . . . . . 1 . 1 . 1 . 1 . 2 . 2 . . . . 2 . 4 . . . . 1 . . 1 . 1 3 Total Hacks 521 | . 31 . 2 1 3 4 54 . 11 . 12 . 41 . 113 . . . . 51 . 82 1 . 17 . 38 3 . 7 2 18 30 Successful 341 | . 23 . 2 1 1 2 39 . 9 . 5 . 20 . 92 . . . . 27 . 55 1 . 17 . 22 . . 3 . 9 13 Failed 177 | . 8 . . . 2 2 14 . 2 . 7 . 20 . 20 . . . . 24 . 27 . . . . 16 3 . 4 2 9 17 Catastrophic 19 | . . . . . . 1 1 . . . . . 2 . 2 . . . . 2 . 3 . . . . 2 1 . 2 . 2 1 Database Lockouts 3 | . . . . . . . 1 . . . . . 1 . 1 . . . . . . . . . . . . . . . . . . Manual 292 | . 18 . 1 . . 1 32 . 7 . 9 . 24 . 72 . . . . 31 . 41 . . . . 29 3 . 3 . 13 8 Terminals 293 | . 20 . . . . 4 35 . 7 . 4 . 23 . 59 . . . . 35 . 38 . . . . 24 3 . 3 2 14 22 Fabricators 65 | . . . . . . . . . 2 . 6 . 8 . 27 . . . . 4 . 18 . . . . . . . . . . . Repair Stations 50 | . 7 . . . . . 11 . 1 . 1 . 2 . 7 . . . . 10 . 5 . . . . . . . 3 . 3 . Recycling Units 31 | . 4 . . . . . . . . . . . . . 10 . . . . . . 7 . . . . 10 . . . . . . Scanalyzers 34 | . . . . . 2 . 7 . . . . . 5 . 4 . . . . . . 10 . . . . 2 . . . . . 4 Garrison Access 27 | . . . . . 1 . 1 . 1 . 1 . 3 . 6 . . . . 2 . 4 . . . . 2 . . 1 . 1 4 Terminal Hacks 88 | . 7 . 2 1 . 2 11 . 2 . 1 . 2 . 22 . . . . 2 . 8 1 . 17 . 3 . . . . 1 6 Record 6 | . . . 1 . . . . . . . . . . . . . . . . . . . . . 5 . . . . . . . . Part Schematic 17 | . 2 . . . . . 3 . . . . . . . 5 . . . . 1 . 2 . . 4 . . . . . . . . Robot Analysis 11 | . 3 . . . . . 4 . . . . . . . . . . . . . . . . . 4 . . . . . . . . Prototype ID Bank 11 | . 1 . . . . . . . 1 . . . 1 . . . . . . . . 2 . . 4 . . . . . . . 2 Open Door 5 | . . . . 1 . . . . . . . . . . . . . . . . . . 1 . . . . . . . . . 3 Level Access Points 1 | . . . . . . . . . . . . . . . 1 . . . . . . . . . . . . . . . . . . Branch Access Points 3 | . . . . . . . . . . . . . . . 1 . . . . . . 1 . . . . 1 . . . . . . Emergency Access Points 3 | . . . . . . 1 . . . . . . . . 2 . . . . . . . . . . . . . . . . . . Terminal Index 6 | . 1 . . . . . 1 . . . 1 . . . 1 . . . . . . . . . . . 1 . . . . 1 . Recycling Unit Index 2 | . . . . . . . . . . . . . . . 1 . . . . . . . . . . . 1 . . . . . . Garrison Index 1 | . . . . . . . 1 . . . . . . . . . . . . . . . . . . . . . . . . . . Unreport Threat 2 | . . . . . . . . . . . . . . . . . . . . . . 2 . . . . . . . . . . . Locate Traps 2 | . . . . . . . . . . . . . . . 1 . . . . 1 . . . . . . . . . . . . . Extermination Status 2 | . . . . . . . . . . . . . 1 . 1 . . . . . . . . . . . . . . . . . . Recall Extermination 1 | . . . . . . . . . . . . . . . 1 . . . . . . . . . . . . . . . . . . Registered Components 1 | . . . . . . . . . . . . . . . 1 . . . . . . . . . . . . . . . . . . Registered Prototypes 2 | . . . . . . . 1 . . . . . . . 1 . . . . . . . . . . . . . . . . . . Zone Layout 10 | . . . . . . . 1 . 1 . . . . . 6 . . . . . . 1 . . . . . . . . . . 1 Security Stations 1 | . . . . . . 1 . . . . . . . . . . . . . . . . . . . . . . . . . . . Proto ID Catalog 1 | . . . 1 . . . . . . . . . . . . . . . . . . . . . . . . . . . . . . Fabricator Hacks 18 | . . . . . . . . . 1 . 1 . . . 8 . . . . 3 . 5 . . . . . . . . . . . Network Status 5 | . . . . . . . . . 1 . 1 . . . 2 . . . . . . 1 . . . . . . . . . . . Load Schematic 8 | . . . . . . . . . . . . . . . 4 . . . . 2 . 2 . . . . . . . . . . . Build 5 | . . . . . . . . . . . . . . . 2 . . . . 1 . 2 . . . . . . . . . . . Repair Station Hacks 36 | . 6 . . . . . 10 . . . . . 1 . 4 . . . . 8 . 4 . . . . . . . 1 . 2 . Scan Component 19 | . 3 . . . . . 5 . . . . . 1 . 2 . . . . 4 . 2 . . . . . . . 1 . 1 . Repair 17 | . 3 . . . . . 5 . . . . . . . 2 . . . . 4 . 2 . . . . . . . . . 1 . Recycling Unit Hacks 8 | . 2 . . . . . . . . . . . . . 3 . . . . . . 1 . . . . 2 . . . . . . Process 3 | . 1 . . . . . . . . . . . . . 1 . . . . . . . . . . . 1 . . . . . . Retrieve Matter 3 | . 1 . . . . . . . . . . . . . 1 . . . . . . . . . . . 1 . . . . . . Retrieve Components 2 | . . . . . . . . . . . . . . . 1 . . . . . . 1 . . . . . . . . . . . Scanalyzer 25 | . . . . . . . 6 . . . . . 4 . 4 . . . . . . 9 . . . . 1 . . . . . 1 Insert Component 7 | . . . . . . . 2 . . . . . 1 . 2 . . . . . . 1 . . . . 1 . . . . . . Analyze 7 | . . . . . . . 2 . . . . . 2 . 2 . . . . . . 1 . . . . . . . . . . . Retrieve Study 11 | . . . . . . . 2 . . . . . 1 . . . . . . . . 7 . . . . . . . . . . 1 Garrison Access Hacks 22 | . . . . . 1 . 1 . 1 . 1 . 2 . 2 . . . . 2 . 4 . . . . 2 . . 1 . 1 4 Unlock Access 6 | . . . . . 1 . 1 . 1 . 1 . . . 1 . . . . . . . . . . . . . . 1 . . . Seal Access 13 | . . . . . . . . . . . . . 1 . 1 . . . . 2 . 4 . . . . 1 . . . . 1 3 Coupler Status 3 | . . . . . . . . . . . . . 1 . . . . . . . . . . . . . 1 . . . . . 1 Unauthorized Hacks 144 | . 8 . . . . . 11 . 5 . 2 . 11 . 49 . . . . 12 . 24 . . . . 14 . . 1 . 5 2 Terminals 97 | . 7 . . . . . 11 . 3 . . . 8 . 27 . . . . 10 . 14 . . . . 9 . . 1 . 5 2 Track 6 | . . . . . . . 1 . . . . . . . 3 . . . . . . . . . . . 1 . . . . . 1 Assimilate 13 | . . . . . . . 1 . 1 . . . 1 . 2 . . . . 2 . 4 . . . . 2 . . . . . . Botnet 32 | . 2 . . . . . 4 . 1 . . . 2 . 9 . . . . 4 . 5 . . . . 2 . . 1 . 1 1 Disrupt 3 | . . . . . . . . . . . . . . . 2 . . . . . . . . . . . 1 . . . . . . Operators 1 | . . . . . . . . . . . . . . . 1 . . . . . . . . . . . . . . . . . . Skim 42 | . 5 . . . . . 5 . 1 . . . 5 . 10 . . . . 4 . 5 . . . . 3 . . . . 4 . Fabricators 22 | . . . . . . . . . 1 . 1 . 2 . 10 . . . . 1 . 7 . . . . . . . . . . . Prioritize 2 | . . . . . . . . . . . . . . . 2 . . . . . . . . . . . . . . . . . . Liberate 1 | . . . . . . . . . . . . . . . . . . . . . . 1 . . . . . . . . . . . Fabnet 12 | . . . . . . . . . 1 . 1 . 1 . 5 . . . . . . 4 . . . . . . . . . . . Haulers 2 | . . . . . . . . . . . . . . . 1 . . . . . . 1 . . . . . . . . . . . Recompile 5 | . . . . . . . . . . . . . 1 . 2 . . . . 1 . 1 . . . . . . . . . . . Repair Stations 4 | . . . . . . . . . 1 . 1 . . . 1 . . . . 1 . . . . . . . . . . . . . Mechanics 3 | . . . . . . . . . 1 . 1 . . . 1 . . . . . . . . . . . . . . . . . . Patch 1 | . . . . . . . . . . . . . . . . . . . . 1 . . . . . . . . . . . . . Recycling Units 16 | . 1 . . . . . . . . . . . . . 7 . . . . . . 3 . . . . 5 . . . . . . Monitor 3 | . . . . . . . . . . . . . . . 2 . . . . . . . . . . . 1 . . . . . . Reject 4 | . . . . . . . . . . . . . . . 2 . . . . . . 1 . . . . 1 . . . . . . Recyclers 3 | . . . . . . . . . . . . . . . 1 . . . . . . 1 . . . . 1 . . . . . . Mask 5 | . . . . . . . . . . . . . . . 2 . . . . . . 1 . . . . 2 . . . . . . Tunnel 1 | . 1 . . . . . . . . . . . . . . . . . . . . . . . . . . . . . . . . Scanalyzers . | . . . . . . . . . . . . . . . . . . . . . . . . . . . . . . . . . . Garrison Access 5 | . . . . . . . . . . . . . 1 . 4 . . . . . . . . . . . . . . . . . . Broadcast 1 | . . . . . . . . . . . . . . . 1 . . . . . . . . . . . . . . . . . . Decoy 1 | . . . . . . . . . . . . . . . 1 . . . . . . . . . . . . . . . . . . Intercept 1 | . . . . . . . . . . . . . . . 1 . . . . . . . . . . . . . . . . . . Watchers 1 | . . . . . . . . . . . . . . . 1 . . . . . . . . . . . . . . . . . . Eject 1 | . . . . . . . . . . . . . 1 . . . . . . . . . . . . . . . . . . . . Data Cores Recovered 3 | . . . . . . . . . . . . . . . . . . . . 1 . . . . . . . 1 . . . 1 . Used . | . . . . . . . . . . . . . . . . . . . . . . . . . . . . . . . . . . Hacking Detections 115 | . 7 . . . 2 2 8 . 4 . 3 . 14 . 15 . . . . 13 . 17 . . . . 6 2 . 4 1 6 11 Full Trace Events 9 | . . . . . . . . . . . 1 . 1 . 1 . . . . 1 . . . . . . . 1 . 1 . . 3 Feedback Events 2 | . . . . . . . . . . . . . . . . . . . . . . . . . . . . . . . . . 2 Corruption 2 | . . . . . . . . . . . . . . . . . . . . . . . . . . . . . . . . . 2 Feedback Blocked . | . . . . . . . . . . . . . . . . . . . . . . . . . . . . . . . . . . Robot Schematics Acquired . | . . . . . . . . . . . . . . . . . . . . . . . . . . . . . . . . . . Robots Built . | . . . . . . . . . . . . . . . . . . . . . . . . . . . . . . . . . . Authchips . | . . . . . . . . . . . . . . . . . . . . . . . . . . . . . . . . . . Time . | . . . . . . . . . . . . . . . . . . . . . . . . . . . . . . . . . . Total Robot Build Rating . | . . . . . . . . . . . . . . . . . . . . . . . . . . . . . . . . . . Part Schematics Acquired 22 | . 2 . . . . . 4 . . . . . 1 . 7 . . . . 1 . 3 . . 4 . . . . . . . . Parts Built 7 | . . . . . . . . . . . . . . . 2 . . . . 2 . 3 . . . . . . . . . . . Authchips 5 | . . . . . . . . . . . . . . . 2 . . . . 1 . 2 . . . . . . . . . . . Time 249 | . . . . . . . . . . . . . . . 159 . . . . 24 . 66 . . . . . . . . . . . Total Part Build Rating 34 | . . . . . . . . . . . . . . . 12 . . . . 6 . 16 . . . . . . . . . . . Part Studies Acquired 11 | . . . . . . . 2 . . . . . 1 . . . . . . . . 7 . . . . . . . . . . 1 Parts Repaired 17 | . 3 . . . . . 5 . . . . . . . 2 . . . . 4 . 2 . . . . . . . . . 1 . Time 594 | . 78 . . . . . 184 . . . . . . . 44 . . . . 176 . 56 . . . . . . . . . 56 . Parts Recycled . | . . . . . . . . . . . . . . . . . . . . . . . . . . . . . . . . . . Recycled Matter 100 | . 45 . . . . . . . . . . . . . 55 . . . . . . . . . . . . . . . . . . Retrieved Matter 100 | . 45 . . . . . . . . . . . . . 55 . . . . . . . . . . . . . . . . . . Retrieved Components 13 | . . . . . . . . . . . . . . . 3 . . . . . . 10 . . . . . . . . . . . Parts Scanalyzed 6 | . . . . . . . 2 . . . . . 1 . 2 . . . . . . 1 . . . . . . . . . . . Part Schematics Acquired 6 | . . . . . . . 2 . . . . . 1 . 2 . . . . . . 1 . . . . . . . . . . . Parts Damaged . | . . . . . . . . . . . . . . . . . . . . . . . . . . . . . . . . . . Bothacking | -11 -10 -10 -10 -9 -8 -8 -8 -8 -7 -7 -7 -7 -6 -6 -6 -6 -6 -6 -5 -5 -5 -5 -5 -5 -5 -4 -4 -4 -4 -3 -3 -2 -1 ------------ Run | Yrd Mat Min Exi Min Mat Gar Mat Gar Fac Gar Fac Gar Fac Was Fac Low Low Zio Pro Fac Was Fac Upp Upp Zhi Pro Fac Arm Lab Res Gar Res Acc Used RIF Installer 5 | . . . . . . 1 . 1 . 1 . 1 . . . . . . . . . . . . . . . . . . 1 . . Threat Obfuscator 1 | . . . . . . . . . . . . 1 . . . . . . . . . . . . . . . . . . . . . Zone Cloak 2 | . . . . . . . . 1 . 1 . . . . . . . . . . . . . . . . . . . . . . . Robot Detection 1 | . . . . . . . . . . . . . . . . . . . . . . . . . . . . . . . 1 . . Robots Hacked 77 | . . . . . . . . 2 . . 3 . 9 2 10 . 2 . 1 3 3 1 . . . . 25 4 . . 1 1 10 Non-combat 25 | . . . . . . . . 1 . . 3 . 8 . . . . . . 1 . . . . . . . . . . 1 1 10 Combat 52 | . . . . . . . . 1 . . . . 1 2 10 . 2 . 1 2 3 1 . . . . 25 4 . . . . . Robot Hacks Applied 35 | . . . . . . . . 2 . . 3 . 10 2 . . . . . 1 3 . . . . . . . . . 1 1 12 parse_system 2 | . . . . . . . . . . . . . 1 . . . . . . . . . . . . . . . . . . . 1 find_chute 2 | . . . . . . . . . . . . . 2 . . . . . . . . . . . . . . . . . . . . map_walls 2 | . . . . . . . . . . . . . . . . . . . . . . . . . . . . . . . . . 2 map_earth 2 | . . . . . . . . . . . . . . . . . . . . . . . . . . . . . . . . . 2 ignore_parts 3 | . . . . . . . . . . . . . 3 . . . . . . . . . . . . . . . . . . . . deconstruct_bot 1 | . . . . . . . . . . . . . . . . . . . . . . . . . . . . . . . . . 1 block_reporting 2 | . . . . . . . . . . . . . 1 . . . . . . . . . . . . . . . . . . . 1 map_route 3 | . . . . . . . . . . . . . . . . . . . . . . . . . . . . . . . . . 3 ignore_targets 5 | . . . . . . . . . . . . . . 2 . . . . . . 3 . . . . . . . . . . . . streamctrl_low 1 | . . . . . . . . . . . . . . . . . . . . . . . . . . . . . . . . 1 . formatsys_low 10 | . . . . . . . . 1 . . 3 . 3 . . . . . . 1 . . . . . . . . . . . . 2 formatsys_high 2 | . . . . . . . . 1 . . . . . . . . . . . . . . . . . . . . . . 1 . . Relay Couplers Released 36 | . . . . . . 7 . 4 . 5 . 4 3 . . . . . . . . . . . . . 4 . . . 9 . . Ejected 3 | . . . . . . . . . . . . . 3 . . . . . . . . . . . . . . . . . . . . Machine Destruction 29 | . . . . . . 7 . 4 . 5 . 4 . . . . . . . . . . . . . . . . . . 9 . . Programmers 4 | . . . . . . . . . . . . . . . . . . . . . . . . . . . 4 . . . . . . Attached 10 | . . . . . . . . 2 . . 2 . 1 1 . . . . . 1 . . . . . . . . . . 2 . 1 Fabnet Peak Effective % 13 | . . . . . . . . . . . . . 6 6 6 6 6 6 5 5 5 5 5 5 5 13 13 13 13 4 4 . . Autooverrided 46 | . . . . . . . . . . . . . 1 . 10 . 2 . 1 2 . 1 . . . . 25 4 . . . . . Robots Rewired 12 | . . . . . . . . 2 . . . . . . . . . . . . . . . . . . . 8 . . 2 . . Allies Hacked 5 | . . . . . . . . . . . . . . . . . . . . . . 1 . . . . 3 1 . . . . . Hacks Repelled . | . . . . . . . . . . . . . . . . . . . . . . . . . . . . . . . . . . Allies | -11 -10 -10 -10 -9 -8 -8 -8 -8 -7 -7 -7 -7 -6 -6 -6 -6 -6 -6 -5 -5 -5 -5 -5 -5 -5 -4 -4 -4 -4 -3 -3 -2 -1 -------- Run | Yrd Mat Min Exi Min Mat Gar Mat Gar Fac Gar Fac Gar Fac Was Fac Low Low Zio Pro Fac Was Fac Upp Upp Zhi Pro Fac Arm Lab Res Gar Res Acc Total Allies 98 | . . 3 . . . . 1 4 1 . 15 . 4 . 11 . 2 . 1 5 . 4 . . . . 27 12 . . 5 1 2 Largest Group 11 | . . 3 3 3 . . 1 5 3 3 11 3 3 . 2 . 1 . 1 2 . 3 . . . . 3 10 . . 3 1 1 Highest-Rated Group 470 | . . 40 40 40 . . 10 79 59 59 205 60 68 . 61 . 29 . 85 39 . 64 . . . . 148 470 . . 264 14 45 Highest-Rated Ally 148 | . . 16 16 16 . . 10 23 26 26 31 23 29 . 47 . 29 . 85 29 . 26 . . . . 58 54 . . 148 14 45 Total Orders 68 | . . . . 1 . . 2 6 . 12 3 1 3 . 2 . . . . 11 . 15 . . . . 2 . . . 1 1 8 STAY 34 | . . . . 1 . . 1 4 . 5 . . 1 . 1 . . . . 5 . 9 . . . . 1 . . . . . 6 ROAM 1 | . . . . . . . . . . . . . . . . . . . . . . 1 . . . . . . . . . . . FOLLOW 18 | . . . . . . . 1 1 . 4 . . 1 . 1 . . . . 4 . 5 . . . . 1 . . . . . . AID 14 | . . . . . . . . 1 . 3 3 1 1 . . . . . . 2 . . . . . . . . . . . 1 2 DROP 1 | . . . . . . . . . . . . . . . . . . . . . . . . . . . . . . . 1 . . Ally Attacks 135 | . . . . 5 . . . 11 . . . . 2 . 18 . 9 . . 4 . 3 . . . . 44 35 . . 4 . . Total Damage 3071 | . . . . 44 . . . 175 . . . . 38 . 397 . 153 . . 45 . 16 . . . . 988 903 . . 312 . . Kills 14 | . . . . . . . . 1 . . . . . . 3 . 1 . . . . . . . . . 3 6 . . . . . Allies Corrupted 5 | . . . . . . . . . . . 1 . . . . . . . . . . . . . . . 1 1 . . 2 . . Allies Melted 3 | . . . . . . . . . . . . . . . 1 . . . . 1 . . . . . . . . . . 1 . . Intel | -11 -10 -10 -10 -9 -8 -8 -8 -8 -7 -7 -7 -7 -6 -6 -6 -6 -6 -6 -5 -5 -5 -5 -5 -5 -5 -4 -4 -4 -4 -3 -3 -2 -1 ------- Run | Yrd Mat Min Exi Min Mat Gar Mat Gar Fac Gar Fac Gar Fac Was Fac Low Low Zio Pro Fac Was Fac Upp Upp Zhi Pro Fac Arm Lab Res Gar Res Acc Active Infowar (turns) 13065 | 8 689 . . . . . . . . . . . 373 . 2036 146 157 90 488 1686 50 1749 248 120 79 157 2367 466 6 513 807 445 385 Optics 11986 | . . . . . . . . . . . . . . . 2036 146 157 90 488 1686 50 1748 248 120 79 157 2359 466 6 513 807 445 385 Terrain 100 | . . . . . . . . . . . . . . . . . . . . 100 . . . . . . . . . . . . . Structural 4677 | . . . . . . . . . . . . . 373 . 467 113 157 90 214 937 49 619 . . . . 517 378 6 513 244 . . Seismic 697 | 8 689 . . . . . . . . . . . . . . . . . . . . . . . . . . . . . . . . Cloaking 78 | . . . . . . . . . . . . . . . . . . . . . . . . . . . 11 . . 64 3 . . Robot Analysis Total 11 | . 3 . . . . . 4 . . . . . . . . . . . . . . . . . 4 . . . . . . . . Derelict Logs Recovered 10 | . . 2 . 2 . . . . . . . . . . . 2 1 . . . . . 1 1 . 1 . . . . . . . Drone Launches . | . . . . . . . . . . . . . . . . . . . . . . . . . . . . . . . . . . Drone Recoveries . | . . . . . . . . . . . . . . . . . . . . . . . . . . . . . . . . . . Exploration | -11 -10 -10 -10 -9 -8 -8 -8 -8 -7 -7 -7 -7 -6 -6 -6 -6 -6 -6 -5 -5 -5 -5 -5 -5 -5 -4 -4 -4 -4 -3 -3 -2 -1 ------------- Run | Yrd Mat Min Exi Min Mat Gar Mat Gar Fac Gar Fac Gar Fac Was Fac Low Low Zio Pro Fac Was Fac Upp Upp Zhi Pro Fac Arm Lab Res Gar Res Acc Turns Passed 23284 | 77 807 618 498 845 381 857 951 691 428 505 608 358 1379 30 3025 146 157 90 488 1686 50 1749 248 120 79 157 2381 466 6 513 807 445 1638 Spaces Moved 25748 | 61 520 356 208 307 168 519 608 479 343 193 265 161 1484 67 4274 324 335 188 289 1838 96 2832 428 262 139 326 3290 429 15 756 886 912 2390 Core 7 | 5 1 . . . . . . . . . . . 1 . . . . . . . . . . . . . . . . . . . . Treads 1904 | . . 148 208 307 168 130 . . . 160 265 161 357 . . . . . . . . . . . . . . . . . . . . Legs 1852 | . . . . . . 389 608 479 343 33 . . . . . . . . . . . . . . . . . . . . . . . Wheels 783 | 56 519 208 . . . . . . . . . . . . . . . . . . . . . . . . . . . . . . . Hover 21202 | . . . . . . . . . . . . . 1126 67 4274 324 335 188 289 1838 96 2832 428 262 139 326 3290 429 15 756 886 912 2390 Flight . | . . . . . . . . . . . . . . . . . . . . . . . . . . . . . . . . . . Fastest Speed 29 | 50 80 110 240 240 152 97 82 82 105 105 170 170 33 38 36 34 41 46 53 36 41 35 37 37 37 37 34 39 39 37 33 33 29 Average Speed 56 | 79 99 163 240 241 159 112 90 91 105 158 170 170 67 38 40 40 41 46 53 39 41 38 37 37 37 37 42 40 39 39 37 34 32 Slowest Speed 450 | 95 150 240 240 320 240 270 97 250 105 170 170 170 450 38 104 41 46 46 53 96 41 89 37 37 37 37 85 43 39 43 40 79 102 Overloaded Moves 15 | . . . . . . . . . . . . . . . . 15 . . . . . . . . . . . . . . . . . Propulsion Burnouts . | . . . . . . . . . . . . . . . . . . . . . . . . . . . . . . . . . . Robots Hopped . | . . . . . . . . . . . . . . . . . . . . . . . . . . . . . . . . . . Potential Cave-ins 2 | . . . . . . . . . . . . . . . . . . . . . . . . . . . . . . . . . 2 Cave-ins Triggered . | . . . . . . . . . . . . . . . . . . . . . . . . . . . . . . . . . . Teleports 1 | . . . . . . . . . . . . . . . . . . . . . . . . . . . . 1 . . . . . Exploration Rate (%) 47 | 5 85 59 60 71 19 57 67 44 10 36 10 42 46 79 66 71 57 15 47 46 77 72 62 48 61 63 52 27 6 23 76 22 36 Regions Visited 33 Branch Regions 13 Pre-discovered Areas 18 | . 2 1 1 1 . . 1 . . . . . 1 . 6 . 1 . . . . 1 . . 3 . . . . . . . . Known Exits Taken 16 | . . . . 1 1 . 1 . 1 . 1 . . . 1 1 . . 1 . . 1 1 1 . 1 1 . 1 1 . 1 . Unknown Exits Taken 8 | 1 1 1 1 . . . . . . . . . . . . . 1 1 . . . . . . 1 . . 1 . . . . . Scrap Searched 14 | . . 2 . 1 . . . . . . . . . . . 1 2 3 1 . . . 2 1 . 1 . . . . . . . Spaces Dug 198 | . . . . . 1 . 6 . . . . . 19 . 22 3 2 . 2 33 . 20 . . . 5 18 3 . 10 22 9 23 Terrain Destroyed 4978 | . . . . 3 2 . 61 10 . 8 . 30 19 . 1682 3 31 . 2 252 . 516 123 77 . 74 1089 161 . 10 124 9 692 Melee 187 | . . . . . . . 5 . . . . . 18 . 22 3 2 . 2 33 . 20 . . . 1 18 3 . 10 22 9 19 Projectile 27 | . . . . 3 2 . 1 . . . . . 1 . 3 . . . . . . . . . . 4 1 . . . . . 12 AOE 4764 | . . . . . . . 55 10 . 8 . 30 . . 1657 . 29 . . 219 . 496 123 77 . 69 1070 158 . . 102 . 661 Terrain Rammed . | . . . . . . . . . . . . . . . . . . . . . . . . . . . . . . . . . . Walls Destroyed . | . . . . . . . . . . . . . . . . . . . . . . . . . . . . . . . . . . Machines Disabled . | . . . . . . . . . . . . . . . . . . . . . . . . . . . . . . . . . . Actions | -11 -10 -10 -10 -9 -8 -8 -8 -8 -7 -7 -7 -7 -6 -6 -6 -6 -6 -6 -5 -5 -5 -5 -5 -5 -5 -4 -4 -4 -4 -3 -3 -2 -1 --------- Run | Yrd Mat Min Exi Min Mat Gar Mat Gar Fac Gar Fac Gar Fac Was Fac Low Low Zio Pro Fac Was Fac Upp Upp Zhi Pro Fac Arm Lab Res Gar Res Acc Total 32435 | 77 711 374 208 382 242 678 972 644 381 317 338 207 1768 69 5141 332 346 190 607 2621 104 3325 499 275 157 349 4066 678 14 897 1286 1013 3167 Wait 3259 | . 119 1 . 33 32 78 304 66 7 58 7 17 143 . 273 1 1 2 302 572 . 183 45 1 . 3 238 19 . 47 244 56 407 Move 25722 | 60 519 355 207 306 168 518 608 478 343 192 265 160 1484 66 4273 323 334 187 288 1838 95 2831 427 261 138 325 3289 428 14 756 885 911 2390 Hop . | . . . . . . . . . . . . . . . . . . . . . . . . . . . . . . . . . . Pick Up 211 | 4 8 6 1 13 7 2 8 2 5 3 1 4 24 . 24 . . . 2 16 1 26 . . 1 1 15 5 . 6 9 2 15 Fast Attach 192 | 7 6 . . 2 6 7 4 5 . 5 2 . 14 . 22 . 1 1 . 15 1 18 3 2 3 1 25 11 . 4 6 6 15 Attach 236 | . 1 1 . 3 . 4 1 8 3 . . 1 1 . 69 3 2 . 1 22 1 36 1 1 1 2 20 6 . 5 7 . 36 Detach 185 | 1 3 . . 1 . . 1 2 2 1 1 . 1 . 55 . 2 . 1 15 . 27 3 1 2 2 21 8 . 1 8 3 23 Swap 260 | . 1 2 . 4 2 4 16 11 3 4 14 4 13 1 13 1 . . . 19 2 28 2 1 4 . 67 5 . 4 7 12 16 Drop 264 | . 3 . . 5 6 . 7 5 1 8 1 1 18 . 34 . 1 . . 19 1 44 3 1 3 2 40 16 . 5 15 5 20 Fire 1399 | 5 50 9 . 15 18 59 16 66 15 46 47 20 20 2 266 . 3 . . 19 3 54 10 6 . 12 298 33 . 58 46 1 202 Melee 523 | . . . . . . . 6 . . . . . 48 . 104 4 2 . 11 86 . 77 5 1 5 1 53 8 . 11 53 17 31 Ram 7 | . 1 . . . . . . . . . . . . . . . . . . . . 1 . . . . . . . . . . 5 Kick 3 | . . . . . . . 1 . 2 . . . . . . . . . . . . . . . . . . . . . . . . Crush 4 | . . . . . 3 . . . . . . . 1 . . . . . . . . . . . . . . . . . . . . Escape Stasis 25 | . . . . . . 6 . . . . . . . . 8 . . . . . . . . . . . . . . . 5 . 6 Rewire 143 | . . . . . . . . 1 . . . . 1 . . . . . . . . . . . . . . 139 . . 1 . 1 Trap 2 | . . . . . . . . . . . . . . . . . . . 2 . . . . . . . . . . . . . . Miscellaneous . | . . . . . . . . . . . . . . . . . . . . . . . . . . . . . . . . . . Route ------- -11/Scrapyard -10/Materials (discovered 6 exits: *Mat x3 / [*Min x2] / Sub) -10/Mines (discovered 3 exits: *Mat / *Exi / *Sub) -10/Exiles -9/Mines -8/Materials -8/Garrison (discovered 3 exits: *Mat x3) -8/Materials (discovered 4 exits: *Fac x3 / Gar) -8/Garrison (discovered 3 exits: *Fac x3) -7/Factory (discovered 2 exits: *Fac / Gar) -7/Garrison -7/Factory -7/Garrison -6/Factory -6/Waste -6/Factory (discovered 7 exits: *Fac x4 / *Low x2 / Gar) -6/Lower Caves -6/Lower Caves -6/Zion -5/Proximity Caves -5/Factory (discovered 5 exits: *Fac x4 / *Upp) -5/Waste -5/Factory (discovered 3 exits: *Fac / *Upp x2) -5/Upper Caves -5/Upper Caves (discovered 2 exits: Fac / *Zhi) -5/Zhirov -4/Proximity Caves -4/Factory (discovered 6 exits: *Res / Upp x2 / *Ext x2 / *Arm) -4/Armory (discovered 2 exits: Res / *Lab) -4/Lab -3/Research (discovered 3 exits: *Res / *Tes / Gar) -3/Garrison (discovered 3 exits: *Res x3) -2/Research (discovered 2 exits: *Acc / Qua) -1/Access (discovered 1 exit: [*Sur]) History --------- Turn | Location | Event 18 | -11/Scrapyard | Discovered new exit (range 15) 78 | -11/Scrapyard | Entered Materials 215 | -10/Materials | Discovered new exit (range 11) 279 | -10/Materials | Discovered new exit (range 15) 310 | -10/Materials | Build established: Mutant 311 | -10/Materials | Repaired Lgt. Assault Rifle 339 | -10/Materials | Repaired Wheel 366 | -10/Materials | Repaired Assault Rifle 420 | -10/Materials | Discovered new exit (range 3) 464 | -10/Materials | Discovered new exit (range 9) 495 | -10/Materials | Loaded intel: 8 terminal locations 546 | -10/Materials | Identified exit to Materials 587 | -10/Materials | Learned location of 1 exit from Recycling 619 | -10/Materials | Learned Materials terminal intel 640 | -10/Materials | Learned Storage emergency access door positions 650 | -10/Materials | Learned location of Storage (-9) 672 | -10/Materials | Identified exit to Subcaves 702 | -10/Materials | Learned 2 Materials zone layouts 742 | -10/Materials | Learned Storage emergency access door positions 885 | -10/Materials | Entered Mines 903 | -10/Mines | A weapon hastily lodged in a ceiling crevice suddenly fell to the ground 1004 | -10/Mines | Assembled infested the area 1054 | -10/Mines | Discovered exit to Subcaves (range 6) 1255 | -10/Mines | Learned Materials terminal intel 1358 | -10/Mines | Learned location of Zion (-6) 1370 | -10/Mines | Assisted by bots powering up and referring to "LRC-V3" 1417 | -10/Mines | Received a Rocket Launcher from a helpful Derelict 1435 | -10/Mines | Discovered exit to Materials (range 14) 1493 | -10/Mines | Deemed a non-threat by the Exiles lab entrance 1493 | -10/Mines | Discovered new exit (range 5) 1503 | -10/Mines | Entered Exiles 1503 | -10/Exiles | Accompanied by 3 allies 1561 | -10/Exiles | Met 8R-AWN 1604 | -10/Exiles | Met EX-HEX 1671 | -10/Exiles | Met EX-BIN 1698 | -10/Exiles | Aligned with FarCom system 1700 | -10/Exiles | Given EX-Vault access code 1755 | -10/Exiles | Opened EX-Vault 1775 | -10/Exiles | Found Trap Reconfigurator 1826 | -10/Exiles | Warned to stay clear of 0b10 Research branches 1898 | -10/Exiles | Met EX-DEC 1982 | -10/Exiles | Discovered new exit (range 10) 2001 | -10/Exiles | Left Exiles lab with Trap Reconfigurator 2001 | -10/Exiles | Entered Mines 2001 | -9/Mines | Accompanied by 3 allies 2223 | -9/Mines | Destroyed YI-UF0 2242 | -9/Mines | Found Prototype Launcher 2242 | -9/Mines | Identified YI-UF0's Doublenader 2248 | -9/Mines | Lost 3 allies 2252 | -9/Mines | Lost 3 parts (2n1u) 2600 | -9/Mines | Identified exit to Materials 2625 | -9/Mines | Met a Derelict shopkeep closing up shop 2683 | -9/Mines | Core integrity fell below 50% 2846 | -9/Mines | Entered Materials 2846 | -8/Materials | Evolved 4 slots: Propulsion x2, Utility x2 2848 | -8/Materials | Loaded intel: 12 terminal locations 3227 | -8/Materials | Identified exit to Garrison 3227 | -8/Materials | Entered Garrison 3469 | -8/Garrison | Triggered checkpoint 3485 | -8/Garrison | Build established: Scavenger-Mutant 3539 | -8/Garrison | Triggered checkpoint 3635 | -8/Garrison | Lost 9 parts (1p4n2u2w) 3644 | -8/Garrison | Discovered new exit (range 5) 3655 | -8/Garrison | Discovered new exit (range 14) 3689 | -8/Garrison | Triggered checkpoint 3711 | -8/Garrison | Garrison Relay disabled 3823 | -8/Garrison | Triggered checkpoint 3867 | -8/Garrison | Learned Materials security intel 3875 | -8/Garrison | Garrison Relay disabled 3929 | -8/Garrison | Discovered new exit (range 12) 3997 | -8/Garrison | Installed Relay Interface Framework 4027 | -8/Garrison | Triggered checkpoint 4084 | -8/Garrison | Entered Materials 4086 | -8/Materials | Loaded intel: 12 terminal locations 4306 | -8/Materials | Repaired Autogun 4352 | -8/Materials | Repaired Hvy. Battle Rifle 4397 | -8/Materials | Repaired Plasma Cannon 4436 | -8/Materials | Repaired VSS Leg 4464 | -8/Materials | Repaired Lgt. Armor Plating 4639 | -8/Materials | Central database locked down 4675 | -8/Materials | Identified exit to Factory 4696 | -8/Materials | Discovered exit to Factory (range 3) 4710 | -8/Materials | Learned location of 1 exit from Recycling 4734 | -8/Materials | Learned location of 1 exit from Storage 4748 | -8/Materials | Learned location of 1 exit from Extension 4777 | -8/Materials | Learned 4 Recycling zone layouts 5035 | -8/Materials | Identified exit to Garrison 5035 | -8/Materials | Entered Garrison 5035 | -8/Garrison | Accompanied by 1 ally 5133 | -8/Garrison | Triggered checkpoint 5227 | -8/Garrison | Triggered checkpoint 5246 | -8/Garrison | Garrison Relay disabled 5406 | -8/Garrison | Triggered checkpoint 5444 | -8/Garrison | Triggered checkpoint 5474 | -8/Garrison | Core integrity fell below 50% 5484 | -8/Garrison | Lost 3 allies 5512 | -8/Garrison | Lost 6 parts (4n1u1w) 5660 | -8/Garrison | Discovered exit to Factory (range 15) 5698 | -8/Garrison | Expanded RIF knowledge: Zone Cloak 5726 | -8/Garrison | Entered Factory 5726 | -7/Factory | Accompanied by 2 allies 5726 | -7/Factory | Evolved 2 slots: Propulsion x1, Utility x1 5881 | -7/Factory | Discovered new exit (range 15) 6118 | -7/Factory | Build established: Mutant 6154 | -7/Factory | Identified exit to Garrison 6154 | -7/Factory | Entered Garrison 6154 | -7/Garrison | Accompanied by 3 allies 6186 | -7/Garrison | H-XX Assembler disabled 6411 | -7/Garrison | Triggered checkpoint 6445 | -7/Garrison | Triggered checkpoint 6447 | -7/Garrison | Destroyed 7 combat bots 6533 | -7/Garrison | Expanded RIF knowledge: Zone Cloak 6594 | -7/Garrison | Garrison Relay disabled 6634 | -7/Garrison | Discovered new exit (range 14) 6659 | -7/Garrison | Entered Factory 6659 | -7/Factory | Accompanied by 3 allies 6984 | -7/Factory | Build established: Commander-Mutant 7267 | -7/Factory | Identified exit to Garrison 7267 | -7/Factory | Entered Garrison 7267 | -7/Garrison | Accompanied by 3 allies 7283 | -7/Garrison | Expanded RIF knowledge: Threat Obfuscation 7341 | -7/Garrison | Triggered checkpoint 7369 | -7/Garrison | Build established: Mutant 7385 | -7/Garrison | P-60 Hacker assimilated allied Smith 3a 7425 | -7/Garrison | Destroyed 8 combat bots 7440 | -7/Garrison | Garrison Relay disabled 7509 | -7/Garrison | Triggered checkpoint 7558 | -7/Garrison | Discovered new exit (range 9) 7625 | -7/Garrison | Entered Factory 7625 | -6/Factory | Evolved 2 slots: Propulsion x2 8391 | -6/Factory | P-60 Hacker assimilated allied Administrator 5a 8606 | -6/Factory | Central database locked down 8710 | -6/Factory | Discovered new exit (range 15) 8931 | -6/Factory | Learned 2 Upper Caves zone layouts 8979 | -6/Factory | Learned location of Proximity Caves (-5) 9004 | -6/Factory | Manually triggered Chute Trap 9004 | -6/Factory | Sucked down chute 9004 | -6/Factory | Entered Waste 9008 | -6/Waste | Spotted C-40 Crusher 9008 | -6/Waste | Spotted C-40 Crusher 9012 | -6/Waste | Spotted C-40 Crusher 9019 | -6/Waste | EMP discharged 9019 | -6/Waste | Spotted C-40 Crusher 9022 | -6/Waste | Spotted C-40 Crusher 9030 | -6/Waste | Spotted C-40 Crusher 9031 | -6/Waste | Discovered new exit (range 10) 9034 | -6/Waste | Entered Factory 9109 | -6/Factory | Build established: Hacker-Mutant 9193 | -6/Factory | Identified exit to Lower Caves 9304 | -6/Factory | Learned location of 1 exit from Upper Caves 9358 | -6/Factory | Repaired Imp. Gravmag System+ 9359 | -6/Factory | Learned Extension emergency access door positions 9371 | -6/Factory | Learned Extension trap positions 9372 | -6/Factory | Learned location of Extension (-4) 9373 | -6/Factory | Learned location of Warlord (-4) 9374 | -6/Factory | Learned Hub_04(d) garrison access intel 9381 | -6/Factory | Repaired Hrd. Medium Armor Plating 9382 | -6/Factory | Fabricated Smartbomb Launcher (x1) 9386 | -6/Factory | Learned 4 Hub_04(d) zone layouts 9400 | -6/Factory | Central database locked down 9400 | -6/Factory | Identified exit to Factory 9673 | -6/Factory | Learned 4 Extension zone layouts 9713 | -6/Factory | Learned Extension trap positions 9743 | -6/Factory | Learned location of Upper Caves (-4) 9765 | -6/Factory | Learned Extension non-interactive machine intel 9784 | -6/Factory | Learned location of 2 exits from Upper Caves 9788 | -6/Factory | Learned Extension stockpile data 9803 | -6/Factory | Learned location of 2 exits from Proximity Caves 9841 | -6/Factory | Identified exit to Garrison 9939 | -6/Factory | Cargo convoy interrupted 9965 | -6/Factory | Unchained authorized (QV-33N) 10007 | -6/Factory | Destroyed 9 combat bots 10013 | -6/Factory | Found Prototype Processor 10013 | -6/Factory | Identified Exp. Signal Interpreter 10016 | -6/Factory | Found Prototype Device 10016 | -6/Factory | Identified Exp. EM Disruption Field 10283 | -6/Factory | Destroyed 11 combat bots 10422 | -6/Factory | Destroyed QV-33N 10462 | -6/Factory | Lost 6 parts (1p2n2u1w) 10546 | -6/Factory | Fabricated Smartbomb Launcher? 10587 | -6/Factory | Build established: Mutant 10667 | -6/Factory | Local machine network offline 11129 | -6/Factory | Build established: Scout 11134 | -6/Factory | First assault squad dispatched 11163 | -6/Factory | High security lockdown imminent 11243 | -6/Factory | High security lockdown engaged 11539 | -6/Factory | Build established: Mutant 11841 | -6/Factory | Destroyed 7 combat bots 12059 | -6/Factory | Entered Lower Caves 12060 | -6/Lower Caves | Identified exit to Lower Caves 12094 | -6/Lower Caves | Lost 4 parts (2n2u) 12105 | -6/Lower Caves | Learned 12 Factory zone layouts 12138 | -6/Lower Caves | Spotted B-75 Beast 12150 | -6/Lower Caves | Encountered a Warlord checkpoint 12162 | -6/Lower Caves | Learned Factory interactive machine intel 12205 | -6/Lower Caves | Entered another Lower Caves area 12356 | -6/Lower Caves | Discovered new exit (range 14) 12362 | -6/Lower Caves | Entered Zion 12384 | -6/Zion | System corruption cleaned by Quarantine Array 12417 | -6/Zion | Discovered new exit (range 16) 12452 | -6/Zion | Entered Proximity Caves 12624 | -5/Proximity Caves | Build established: Scavenger-Mutant 12689 | -5/Proximity Caves | Attracted the attention of an 0b10 checkpoint 12719 | -5/Proximity Caves | Spotted B-75 Beast 12940 | -5/Proximity Caves | Entered Factory 12940 | -5/Factory | Evolved 2 slots: Propulsion x1, Utility x1 12941 | -5/Factory | Identified exit to Factory 12942 | -5/Factory | Loaded intel: 53 interactive machine locations 12987 | -5/Factory | Build established: Mutant 12992 | -5/Factory | Fabricated Imp. Propulsion Shielding (x2) 13323 | -5/Factory | Discovered exit to Factory (range 12) 13380 | -5/Factory | Garrison activated, responded to threat 13828 | -5/Factory | Build established: Hacker-Scout 14219 | -5/Factory | Build established: Hacker-Mutant 14274 | -5/Factory | Repaired Cld. Airjet 14310 | -5/Factory | Repaired Cld. Airjet 14396 | -5/Factory | Repaired Smartbomb Launcher 14447 | -5/Factory | Repaired Imp. Gravmag System+ 14459 | -5/Factory | Discovered exit to Factory (range 5) 14554 | -5/Factory | Discovered new exit (range 20) 14626 | -5/Factory | Manually triggered Chute Trap 14626 | -5/Factory | Sucked down chute 14626 | -5/Factory | Entered Waste 14627 | -5/Waste | Spotted C-40 Crusher 14641 | -5/Waste | EMP discharged 14641 | -5/Waste | System corruption reached 10% 14648 | -5/Waste | Spotted C-40 Crusher 14648 | -5/Waste | Spotted C-40 Crusher 14648 | -5/Waste | Spotted C-40 Crusher 14663 | -5/Waste | Spotted C-40 Crusher 14663 | -5/Waste | Spotted C-40 Crusher 14668 | -5/Waste | Discovered new exit (range 12) 14676 | -5/Waste | Entered Factory 14747 | -5/Factory | Fabricated Smartbomb Launcher? 15001 | -5/Factory | Fabricated Launcher Loader? 15202 | -5/Factory | Identified exit to Upper Caves 15397 | -5/Factory | Repaired Lrn. Tractor Beam 15757 | -5/Factory | Learned Quarantine emergency access door positions 15837 | -5/Factory | Repaired Lrn. Tractor Beam 15848 | -5/Factory | Local machine network offline 16249 | -5/Factory | Build established: Scientist-Mutant 16425 | -5/Factory | Entered Upper Caves 16426 | -5/Upper Caves | Identified exit to Upper Caves 16456 | -5/Upper Caves | Learned Factory terminal intel 16481 | -5/Upper Caves | Encountered a Warlord checkpoint 16673 | -5/Upper Caves | Entered another Upper Caves area 16674 | -5/Upper Caves | Identified exit to Zhirov 16696 | -5/Upper Caves | Encountered a Warlord checkpoint 16708 | -5/Upper Caves | Found Alien Artifact 16708 | -5/Upper Caves | Identified Dimensional Node Initializer 16708 | -5/Upper Caves | Initialized slip node 16775 | -5/Upper Caves | Learned Factory terminal intel 16793 | -5/Upper Caves | Entered Zhirov 16793 | -5/Zhirov | Discovered new exit (range 3) 16800 | -5/Zhirov | Met Zhirov 16808 | -5/Zhirov | Learned location of Quarantine (-2) 16808 | -5/Zhirov | Learned location of Testing (-3) 16808 | -5/Zhirov | Learned location of Command (-1) 16811 | -5/Zhirov | Zhirov requested help retrieving the SGEMP Prototype 16816 | -5/Zhirov | Found Alien Artifact 16816 | -5/Zhirov | Identified Integrated Dissipator 16816 | -5/Zhirov | Installed Integrated Dissipator, increased core heat dissipation (+20) 16824 | -5/Zhirov | Found Alien Artifact 16872 | -5/Zhirov | Entered Proximity Caves 16877 | -4/Proximity Caves | Build established: Hacker-Mutant 16960 | -4/Proximity Caves | Spotted B-86 Titan 17007 | -4/Proximity Caves | Attracted the attention of an 0b10 checkpoint 17029 | -4/Proximity Caves | Entered Factory 17029 | -4/Factory | Evolved 2 slots: Power x1, Utility x1 17030 | -4/Factory | Loaded intel: 28 terminal locations 17038 | -4/Factory | Identified Transdimensional Reconstructor 17067 | -4/Factory | Identified exit to Upper Caves 17067 | -4/Factory | Identified exit to Extension 17067 | -4/Factory | Identified exit to Armory 17070 | -4/Factory | Discovered new exit (range 5) 17201 | -4/Factory | Local machine network offline 17258 | -4/Factory | Lost 3 allies 17279 | -4/Factory | First assault squad dispatched 17583 | -4/Factory | Build established: Scientist-Mutant 17620 | -4/Factory | Destroyed 12 combat bots 17826 | -4/Factory | Spotted B-86 Titan 18114 | -4/Factory | High security lockdown imminent 18194 | -4/Factory | High security lockdown engaged 18401 | -4/Factory | Destroyed 8 combat bots 18495 | -4/Factory | Destroyed 8 combat bots 18599 | -4/Factory | Destroyed 8 combat bots 18677 | -4/Factory | Destroyed 18 combat bots 18785 | -4/Factory | Destroyed 17 combat bots 18785 | -4/Factory | Spotted B-86 Titan 18882 | -4/Factory | Sterilization system engaged 18882 | -4/Factory | Non-combat units ordered to evacuate 18898 | -4/Factory | Destroyed 11 combat bots 18982 | -4/Factory | Combat units ordered to evacuate 19182 | -4/Factory | Ambient heat levels rising (+10) 19332 | -4/Factory | Ambient heat levels rising (+10) 19410 | -4/Factory | Entered Armory 19595 | -4/Armory | Found Prototype Processor 19595 | -4/Armory | Identified Exp. Terrain Scan Processor 19621 | -4/Armory | Unchained authorized (CL-0N3) 19660 | -4/Armory | First assault squad dispatched 19661 | -4/Armory | Exiles provided nearest exit location to -3/Research 19734 | -4/Armory | Destroyed 8 combat bots 19740 | -4/Armory | Local machine network offline 19792 | -4/Armory | Warped through subspace to slip node 19792 | -4/Armory | Discovered new exit (range 1) 19812 | -4/Armory | Lost 8 allies 19866 | -4/Armory | Spotted B-86 Titan 19876 | -4/Armory | Entered Lab 19876 | -4/Lab | Discovered exit to Research (range 9) 19881 | -4/Lab | Unable to decrypt terminal 19882 | -4/Lab | Entered Research 19882 | -3/Research | Evolved 2 slots: Propulsion x1, Utility x1 20033 | -3/Research | Discovered new exit (range 5) 20069 | -3/Research | Unchained authorized (CL-0N3) 20073 | -3/Research | Discovered new exit (range 8) 20078 | -3/Research | Identified exit to Testing 20085 | -3/Research | Identified exit to Research 20282 | -3/Research | Spotted B-86 Titan 20353 | -3/Research | K-01 Serf reconstituted as Executioner 20353 | -3/Research | Spotted Executioner 20395 | -3/Research | Identified exit to Garrison 20395 | -3/Research | Entered Garrison 20665 | -3/Garrison | Garrison Relay disabled 20696 | -3/Garrison | Triggered checkpoint 20704 | -3/Garrison | Triggered checkpoint 20719 | -3/Garrison | Triggered checkpoint 20755 | -3/Garrison | Destroyed B-86 Titan 20776 | -3/Garrison | Destroyed 13 combat bots 20838 | -3/Garrison | Discovered exit to Research (range 14) 20916 | -3/Garrison | Spotted B-90 Cyclops 20919 | -3/Garrison | Discovered exit to Research (range 10) 20933 | -3/Garrison | Garrison Relay disabled 20957 | -3/Garrison | Build established: Mutant 21034 | -3/Garrison | Found embedded Infiltrators 21112 | -3/Garrison | Rewired B-90 Cyclops 21113 | -3/Garrison | Spotted B-86 Titan 21114 | -3/Garrison | Rewired B-86 Titan 21163 | -3/Garrison | Discovered exit to Research (range 8) 21179 | -3/Garrison | Garrison Relay disabled 21186 | -3/Garrison | Expanded RIF knowledge: Robot Detection 21202 | -3/Garrison | Entered Research 21202 | -2/Research | Evolved 2 slots: Power x1, Utility x1 21203 | -2/Research | Identified exit to Quarantine 21278 | -2/Research | Found Prototype Device 21278 | -2/Research | Identified Exp. EM Shield 21339 | -2/Research | Repaired Smartbomb Launcher 21389 | -2/Research | Unchained authorized (CL-0N3) 21499 | -2/Research | Discovered new exit (range 14) 21541 | -2/Research | T-07 Excavator reconstituted as Alpha 7 21572 | -2/Research | Identified exit to Access 21622 | -2/Research | Spotted Alpha 7 21647 | -2/Research | Entered Access 21647 | -1/Access | Evolved 2 slots: Propulsion x1, Utility x1 21734 | -1/Access | Destroyed 8 combat bots 21808 | -1/Access | Destroyed 8 combat bots 21876 | -1/Access | Discovered new exit (range 5) 21963 | -1/Access | Found Quantum Capacitor 22197 | -1/Access | Spotted B-99 Colossus 22205 | -1/Access | Build established: Scavenger-Mutant 22397 | -1/Access | First assault squad dispatched 22398 | -1/Access | Destroyed 12 combat bots 22830 | -1/Access | High security lockdown imminent 22910 | -1/Access | High security lockdown engaged 23005 | -1/Access | Build established: Scavenger-Sprinter 23101 | -1/Access | Destroyed Executioner 23101 | -1/Access | Destroyed Executioner 23122 | -1/Access | Destroyed 13 combat bots 23136 | -1/Access | Spotted Striker 23138 | -1/Access | Destroyed Striker 23156 | -1/Access | Destroyed Investigator 23160 | -1/Access | Spotted Striker 23175 | -1/Access | Spotted Executioner 23244 | -1/Access | System corruption reached 10% 23247 | -1/Access | Spotted Executioner 23248 | -1/Access | Spotted Executioner 23268 | -1/Access | Scanned by Researcher 23268 | -1/Access | Spotted Investigator 23271 | -1/Access | Destroyed Investigator 23271 | -1/Access | Spotted Executioner 23278 | -1/Access | Core integrity fell below 50% 23284 | -1/Access | Core integrity fell below 20% 23285 | -1/Access | Destroyed by G-73 Enforcer with Heavy Laser Last Messages --------------- 23280_ Acquired 6 matter. 23280_ Penetrated by Slug. 23280_ Gyrokinetic Inverter+ destroyed. 23281_ Slammed into G-73 Enforcer. 23281_ Destabilizing: System corrupted (+1). 23281_ P-80 Master resets P-80 Master, system corruption cleaned. 23281_ Slug penetrates Wall. 23282_ Slammed into G-73 Enforcer. 23282_ P-80 Master resets M-36 Artificer, system corruption cleaned. 23283_ Penetrated by Slug. 23283_ Slug penetrates Wall. 23283_ Slammed into G-73 Enforcer. 23283_ P-80 Master resets P-80 Master, system corruption cleaned. 23283_ Slug penetrates Wall. 23284_ System corrupted: Imp. Gyrokinetic Inverter+ rejected. 23284_ Imp. Hacking Suite destroyed. Map ----- +----------------------------------------------------+ | ?????????????????????????????????????????????????? | | ???????????????????????????? ???????????????????? | | ?????????????????????????? ""R" ??????????????? | | ??????????????????????????# "" " ???????????? | | ?????????????????????????? ?????????? | | ?????????????????????????? ??????????? | | ??????????????????????????# " ?????????? | | ??????????????????????????# """ ##### | | ??????????????????????????# """ | | ??????????????????????????# != " | | ??????????????????????????# != | | ??????????????????????????# = | | ???????????????????w??????+ ?? | | ??????????????????????????# ???? | | ??????????????????????????# ??????? | | ????????????? ?????????????? ?????????######## | | ??????????? ?????????????##"#?????????????????? | | ?????????# ?################?????????????????? | | ??????#### ?# i ! =#??????????????????? | | ???? ?# ihp gg =#??????????????????? | | ??? ?# g mE p =#??????????????????? | | ??? + g Epi %#??????????????????? | | ??? # %]lE pp #???????????????###? | | ???? ## %% = geg #???????????????# #? | | ?????# #### g #####????##############? | | ?????# #### # ##@#????????# #? | | ?????# ##????????# #? | | ?????# hh#######???# #? | | ?????# #???# ## | | ###### " " ##### #???# # | | "%" % #???# ##### E " | | ??# " ###########???#%% / # | | ??# #??????????####+##### # | | ??# #??????????#? ??# ## | | ??# ############ # [ " #? | | ??# # !## # "%" #? | | ??# # ## # " #? | | ?## # " ########################? | | ?# p# """ #????????????#######????? | | ?# + """ #?????########"![#"###### | | ?# # " !#?????# ==* # | | ?##+######### ## #?????# ![ | | ????????????# ## = #?????# !! = | | ????????????# ############?????# #####" #"=" # | | ????????????# #????????????????# #???####### # | | ????????????# #????????????????# ##????????# | | ????????????# #????????????????# "????????# | | ????????????# #????????????????# "????????# | | ????????????# #????????????????### #????????###### | | ????????????# #???????????????????##?????????????# | +----------------------------------------------------+ Best States ------------- Heat Dissipation 148 Energy Generation 59 Energy Capacity 660 Matter Stores 300 Matter Capacity 300 Sight Range 23 Terrain Scan Range 14 Terrain Scan Density 10 Cloak Strength 3 Additional Mass Support 16 Base Temperature (-) 200 Armor Coverage 1200 Resistance: TH 30 Resistance: EX 25 Resistance: EM 75 Core Shielding 40 Propulsion Shielding 66 Utility Shielding 66 Weapon Shielding 33 Phase Shifting 15 Evasion (%) 70 Recoil Reduction 6 Matter Filtering 50 Energy Filtering 50 Offensive Hacking 32 Defensive Hacking 22 Relay Coupler Types 1 Relay Coupler Value 35 Authchip Count 1 Item Schematics ----------------- ECM Suite | -10/Materials | Hacked Huge Storage Unit | -10/Materials | Hacked Hacking Suite | -8/Materials | Hacked Cesium-ion Thruster | -8/Materials | Hacked Imp. Cooling System | -8/Materials | Scanalyzed Hcp. Storage Unit | -8/Materials | Scanalyzed Adv. Phase Shifter | -6/Factory | Scanalyzed Smartbomb Launcher | -6/Factory | Hacked Adv. Coolant Injector | -6/Factory | Hacked Gyrokinetic Inverter | -6/Factory | Hacked Point Defense System | -6/Factory | Hacked Hyp. Gauss Rifle | -6/Factory | Hacked Imp. Propulsion Shielding | -6/Factory | Scanalyzed Matter Compressor | -6/Factory | Scanalyzed Launcher Loader | -5/Factory | Hacked Hyp. Gauss Cannon | -5/Factory | Scanalyzed Adv. Cooling System | -5/Factory | Hacked Adv. Force Field | -5/Factory | Hacked Assault Drone Bay | -5/Zhirov | Free Exp. Heat Sink | -5/Zhirov | Free Exp. Optical Array | -5/Zhirov | Free Imp. Arc Thrower | -5/Zhirov | Free Robot Schematics ------------------ None Fabricated ------------ Smartbomb Launcher | x1 | -6/Factory | Authchip Smartbomb Launcher | x1 | -6/Factory | Authchip Imp. Propulsion Shielding | x2 | -5/Factory | Authchip Smartbomb Launcher | x1 | -5/Factory | Authchip Launcher Loader | x2 | -5/Factory | Authchip Repaired ---------- Lgt. Assault Rifle | 5% | -10/Materials Wheel | 37% | -10/Materials Assault Rifle | 44% | -10/Materials Autogun | 19% | -8/Materials Hvy. Battle Rifle | 20% | -8/Materials Plasma Cannon | 28% | -8/Materials VSS Leg | 56% | -8/Materials Lgt. Armor Plating | 48% | -8/Materials Imp. Gravmag System | 34% | -6/Factory Hrd. Medium Armor Plating | 67% | -6/Factory Cld. Airjet | 2% | -5/Factory Cld. Airjet | 8% | -5/Factory Smartbomb Launcher | 31% | -5/Factory Imp. Gravmag System | 40% | -5/Factory Lrn. Tractor Beam | 25% | -5/Factory Lrn. Tractor Beam | 40% | -5/Factory Smartbomb Launcher | 56% | -2/Research Studied --------- VSS Leg | -8/Materials | Hacked Aluminum Leg | -8/Materials | Hacked Imp. Gravmag System | -6/Factory | Hacked Gyrokinetic Inverter | -5/Factory | Hacked Hyp. Gauss Cannon | -5/Factory | Hacked Cmb. Airjet | -5/Factory | Hacked Neutrino Core | -5/Factory | Hacked Powered Hammer | -5/Factory | Hacked Imp. Remote Datajack | -5/Factory | Hacked Power Sword | -5/Factory | Hacked Imp. Gyrokinetic Inverter | -1/Access | Hacked Alien Tech Used ----------------- Dimensional Node Initializer Integrated Dissipator Transdimensional Reconstructor Achievements -------------- Into The Furnace Watcher Gambling Challenges ------------ None Game ------ Seed SpacefoldHelicalRigger Manual? 0 Play Time 08:07:36 Cumulative 752.3 hours Start 2025.12.05 @ 10:03:39 End 2025.12.07 @ 12:04:57 Sessions 7 Manual Loads 0 Difficulty Rogue Special Mode None Game No. 318 Rogue 318 Adventurer 0 Explorer 0 Win Type - Total 80 Types 41/5/14/6/6/1/1/3/0/3 Lore% 97 Gallery% 90 Achievement% 83 Wizard Run 0 Options --------- Layout 1 ASCII 0 Keyboard 0 Movement Numpad Keybinds 0 Fullscreen 1 Font 24/Smallcaps Map View 50x35 Zoom Use 0% Tactical HUD 1 Map Filters NONE Filters NONE Steam 1 RUN: feb81bd6-b07c-4246-acec-417f435fa04f